Cogmind - Beta 14 @@@ ROGUE MODE // 2024.08.07 @ 16:50:23 // Winter2019/RPGLIKE Player: badjay Result: Destroyed by Combat Programmer with EMDS Performance ------------- Evolutions (8) 4000 Regions Visited (33) 6600 Robots Destroyed (598) 2990 Value Destroyed (32036) 32036 Prototype IDs (93) 1860 Alien Tech Used (1) 200 Bonus (14781) 14781 TOTAL SCORE: 62467 Bonus ------- High Alert Combat Kills 7372 Follower Combat Kills 309 Met Warlord at Base 500 MAIN.C Attacked Warlord 500 Built Enhanced Grunts 300 A7 Reached Mainframe 300 Hacked Protovariant 500 Met R17 at Research 2000 Scanned by Researcher 500 Pursued by Intercept 500 Met Sigix 2000 Cogmind --------- Core Integrity 0/600 Matter 290/300 Energy 169/170 System Corruption 0% Temperature Cool (3) Movement Flying (99) Ox1 Location -2/Section 7 Parts ------- > --- POWER (1) -------- Light Antimatter Reactor > --- PROPULSION (5) --- Q-thruster Q-thruster Electron Diverter Electron Diverter Improved Diametric Drive > --- UTILITY (13) ----- Advanced Melee Analysis Suite Advanced Melee Analysis Suite Advanced Target Analyzer Core Analyzer Improved Armor Integrity Analyzer Microactuators Nanoactuators Advanced Actuator Array Stasis Canceller Advanced Transmission Jammer Experimental Reaction Control System Graphene Brace Advanced Corruption Screen > --- WEAPON (5) ------- Vibroblade Plasma Lance Enhanced Force Lance Enhanced Force Lance Vortex Lance > --- INVENTORY (3) ---- Protomatter-80 Protomatter-58 Subatomic Replicator Peak State ------------ > --- POWER ------------ Light Antimatter Reactor > --- PROPULSION ------- Diametric Drive Q-thruster Electron Diverter Electron Diverter Improved Diametric Drive > --- UTILITY ---------- Advanced Melee Analysis Suite Advanced Melee Analysis Suite Advanced Target Analyzer Core Analyzer Improved Armor Integrity Analyzer Microactuators Nanoactuators Advanced Actuator Array Advanced Transmission Jammer Experimental Reaction Control System Advanced Phase Shifter Graphene Brace Advanced Corruption Screen > --- WEAPON ----------- Vibroblade Plasma Lance Enhanced Force Lance Enhanced Force Lance Vortex Lance > --- INVENTORY -------- Stasis Canceller Navigation Efficiency Matrix Subatomic Replicator [Rating: 181] Favorites ----------- Power F-cell Engine Engine F-cell Engine Power Core Light Nuclear Core Reactor Light Antimatter Reactor Propulsion Cooled VTOL Module Flight Unit Cooled VTOL Module Utility Advanced Melee Analysis Suite Device Microactuators Processor Advanced Melee Analysis Suite Hackware Hacking Suite Protection Hardened Medium Armor Plating Weapon Spear Energy Gun Small Laser Special Weapon Molecular Deconstructor Impact Weapon Heavy Flail Slashing Weapon Vibroblade Piercing Weapon Spear Build | -11 -10 -10 -9 -9 -9 -8 -8 -8 -7 -7 -7 -7 -6 -6 -6 -6 -5 -5 -5 -5 -4 -4 -4 -4 -4 -4 -4 -4 -3 -3 -2 -2 -2 ------- Run | Yrd Mat Min Mat Min Exi Min Mat Sto Fac Low Low Zio Pro Fac Low Low Fac Upp Upp War Pro Fac Was Fac Ext Cet Arc Hub Res Qua Res Tes Sec Slots Evolved 20 | . 3 . 2 . . . 4 1 4 . . . . 2 . . 1 . . . 1 . . . . . 1 . . . 1 . . Power . | . . . . . . . . . . . . . . . . . . . . . . . . . . . . . . . . . . Propulsion 4 | . 1 . 2 . . . 1 . . . . . . . . . . . . . . . . . . . . . . . . . . Utility 12 | . 1 . . . . . 1 . 4 . . . . 2 . . 1 . . . 1 . . . . . 1 . . . 1 . . Weapon 4 | . 1 . . . . . 2 1 . . . . . . . . . . . . . . . . . . . . . . . . . Parts Attached 217 | . 18 3 12 . . 1 12 3 26 . 1 . . 18 1 3 9 . 1 1 1 11 2 18 8 1 1 . 23 7 1 30 5 Power 18 | . 1 . . . . 1 1 1 1 . 1 . . . . . 2 . . . . . . . . 1 . . 5 . . 4 . Engine 6 | . 1 . . . . 1 . 1 1 . 1 . . . . . 1 . . . . . . . . . . . . . . . . Core 3 | . . . . . . . 1 . . . . . . . . . 1 . . . . . . . . . . . . . . 1 . Reactor 9 | . . . . . . . . . . . . . . . . . . . . . . . . . . 1 . . 5 . . 3 . Propulsion 53 | . 3 . 6 . . . 3 . 5 . . . . 12 1 . 1 . . . . 3 . 7 . . . . 4 2 . 3 3 Treads . | . . . . . . . . . . . . . . . . . . . . . . . . . . . . . . . . . . Leg . | . . . . . . . . . . . . . . . . . . . . . . . . . . . . . . . . . . Wheel . | . . . . . . . . . . . . . . . . . . . . . . . . . . . . . . . . . . Hover . | . . . . . . . . . . . . . . . . . . . . . . . . . . . . . . . . . . Flight 53 | . 3 . 6 . . . 3 . 5 . . . . 12 1 . 1 . . . . 3 . 7 . . . . 4 2 . 3 3 Utility 92 | . 2 2 3 . . . 2 1 11 . . . . 6 . . 4 . . . 1 6 2 7 6 . 1 . 10 5 1 20 2 Device 68 | . . 1 . . . . . . 5 . . . . 5 . . 3 . . . . 5 2 5 5 . 1 . 10 5 1 18 2 Storage . | . . . . . . . . . . . . . . . . . . . . . . . . . . . . . . . . . . Processor 19 | . 1 . 2 . . . . 1 6 . . . . 1 . . 1 . . . 1 1 . 2 1 . . . . . . 2 . Hackware 1 | . . . 1 . . . . . . . . . . . . . . . . . . . . . . . . . . . . . . Protection 4 | . 1 1 . . . . 2 . . . . . . . . . . . . . . . . . . . . . . . . . . Artifact . | . . . . . . . . . . . . . . . . . . . . . . . . . . . . . . . . . . Weapon 54 | . 12 1 3 . . . 6 1 9 . . . . . . 3 2 . 1 1 . 2 . 4 2 . . . 4 . . 3 . Energy Gun 11 | . 11 . . . . . . . . . . . . . . . . . . . . . . . . . . . . . . . . Energy Cannon . | . . . . . . . . . . . . . . . . . . . . . . . . . . . . . . . . . . Ballistic Gun . | . . . . . . . . . . . . . . . . . . . . . . . . . . . . . . . . . . Ballistic Cannon . | . . . . . . . . . . . . . . . . . . . . . . . . . . . . . . . . . . Launcher . | . . . . . . . . . . . . . . . . . . . . . . . . . . . . . . . . . . Special Weapon 1 | . . . . . . . . . . . . . . . . 1 . . . . . . . . . . . . . . . . . Impact Weapon 15 | . 1 1 3 . . . 3 1 2 . . . . . . 2 . . 1 . . . . 1 . . . . . . . . . Slashing Weapon 10 | . . . . . . . 3 . 4 . . . . . . . . . . . . . . 1 1 . . . . . . 1 . Piercing Weapon 17 | . . . . . . . . . 3 . . . . . . . 2 . . 1 . 2 . 2 1 . . . 4 . . 2 . Special Melee Weapon . | . . . . . . . . . . . . . . . . . . . . . . . . . . . . . . . . . . Unidentified Prototypes 31 | . . 1 . . . . 1 1 . . . . . . . 1 2 . . 1 . 3 . 2 . . . . 4 1 . 13 1 Parts Lost 3 | . . . . . . . . . 1 . . . . . . . . . . . . 1 . . . . . . . . . . 1 Power . | . . . . . . . . . . . . . . . . . . . . . . . . . . . . . . . . . . Propulsion . | . . . . . . . . . . . . . . . . . . . . . . . . . . . . . . . . . . Utility 2 | . . . . . . . . . 1 . . . . . . . . . . . . . . . . . . . . . . . 1 Weapon 1 | . . . . . . . . . . . . . . . . . . . . . . 1 . . . . . . . . . . . Highest Loss Streak 1 | . . . . . . . . . 1 . . . . . . . . . . . . 1 . . . . . . . . . . 1 To Critical Strikes . | . . . . . . . . . . . . . . . . . . . . . . . . . . . . . . . . . . Average Slot Usage (%) 95 | . 55 70 88 100 100 100 90 94 95 100 99 100 100 99 100 100 98 100 100 100 100 93 90 94 95 95 95 95 99 100 100 99 98 Engine 3 | . 7 14 12 11 11 11 . 2 5 5 4 5 5 5 5 5 4 4 4 4 4 4 4 4 4 1 . . . . . . . Flight 24 | . 14 28 35 44 44 44 36 37 29 27 27 27 27 25 25 25 23 23 23 23 22 21 18 17 18 18 17 17 20 21 21 20 20 Device 19 | . . . . . . . . . 5 11 11 11 11 20 25 25 24 28 28 28 27 27 27 26 27 27 27 30 29 30 30 28 27 Processor 18 | . 7 . 11 11 11 11 . 2 18 27 27 27 27 23 20 20 20 19 19 19 22 22 22 22 22 22 21 21 21 21 21 24 25 Hackware 1 | . . . 3 11 11 11 8 7 3 . . . . . . . . . . . . . . . . . . . . . . . . Impact Weapon 7 | . 2 27 24 22 22 22 22 16 12 11 11 11 11 10 10 10 7 4 4 4 4 4 4 2 . . . . . . . . . Slashing Weapon 2 | . . . . . . . 4 14 2 . . . . . . . . . . . . . . 3 4 4 4 4 4 4 4 4 4 Piercing Weapon 12 | . . . . . . . . . 14 16 16 16 16 15 15 15 15 19 19 19 18 12 13 15 18 18 17 17 17 17 17 15 16 Peak Build Rating 181 | . 7 16 19 19 19 21 37 44 73 73 73 73 73 88 88 100 95 95 97 102 108 124 126 146 143 144 149 149 156 163 163 179 181 Average Rating 98 | . 3 7 13 19 19 20 29 39 59 73 72 73 73 82 87 88 90 95 95 99 107 107 123 138 142 143 145 149 151 157 163 173 176 On Entrance 86 | . . 4 7 19 19 19 21 37 44 73 73 73 73 73 88 88 88 95 95 97 102 108 124 123 143 143 144 149 149 154 163 163 179 Naked Turns 45 | . 45 . . . . . . . . . . . . . . . . . . . . . . . . . . . . . . . . Heaviest Build 58 | . 8 8 8 8 8 10 23 32 35 26 26 26 26 35 35 35 37 37 37 39 39 43 44 52 53 51 55 55 57 56 56 58 57 Greatest Support 61 | 3 8 8 18 23 23 23 30 35 46 36 36 36 36 39 45 45 50 40 40 40 40 50 51 61 61 55 55 61 56 57 57 59 59 Greatest Overweight (x) 1 | . 1 . . . . . . . . . . . . . . . . . . . . . . 1 . . . . 1 . . . 1 Average Overweight (x) . | . . . . . . . . . . . . . . . . . . . . . . . . . . . . . . . . . . Largest Inventory Capacity 3 | . . . . . . . 1 1 1 1 1 2 2 2 2 2 2 2 2 2 2 3 3 3 3 3 3 3 3 3 3 3 3 Average Capacity 1 | . . . . . . . . 1 1 1 1 1 2 2 2 2 2 2 2 2 2 2 3 3 3 3 3 3 3 3 3 3 3 Most Carried 3 | . . . . . . . 1 1 1 1 1 2 2 2 2 2 2 2 2 2 2 3 3 3 3 3 3 3 3 3 3 3 3 Average Carried 1 | . . . . . . . . 1 . . 1 1 2 1 2 2 2 2 1 1 1 2 3 2 2 3 2 2 2 2 3 2 2 Final Capacity 3 | . . . . . . . 1 1 1 1 1 2 2 2 2 2 2 2 2 2 2 3 3 3 3 3 3 3 3 3 3 3 3 Final Carried 3 | . . . . . . . 1 1 1 1 1 2 2 2 2 2 2 2 2 2 1 3 3 1 3 3 2 3 3 3 3 2 3 Class Distribution -------------------- 93% | Hacker-Sprinter 3% | Hacker-Gladiator Dominant Class ---------------- Hacker-Mutant | -10/Materials Hacker-Gladiator | -10/Mines Hacker-Sprinter | -9/Materials Hacker-Sprinter | -9/Mines Hacker-Sprinter | -9/Exiles Hacker-Sprinter | -8/Mines Hacker-Sprinter | -8/Materials Hacker-Sprinter | -8/Storage Hacker-Sprinter | -7/Factory Hacker-Sprinter | -7/Lower Caves Hacker-Sprinter | -7/Lower Caves Hacker-Sprinter | -7/Zion Hacker-Sprinter | -6/Proximity Caves Hacker-Sprinter | -6/Factory Hacker-Sprinter | -6/Lower Caves Hacker-Sprinter | -6/Lower Caves Hacker-Sprinter | -5/Factory Hacker-Sprinter | -5/Upper Caves Hacker-Sprinter | -5/Upper Caves Hacker-Sprinter | -5/Warlord Hacker-Sprinter | -4/Proximity Caves Hacker-Sprinter | -4/Factory Hacker-Sprinter | -4/Waste Hacker-Sprinter | -4/Factory Hacker-Sprinter | -4/Extension Hacker-Sprinter | -4/Cetus Hacker-Sprinter | -4/Archives Hacker-Sprinter | -4/Hub_04(d) Hacker-Sprinter | -3/Research Hacker-Sprinter | -3/Quarantine Hacker-Sprinter | -2/Research Hacker-Sprinter | -2/Testing Hacker-Sprinter | -2/Section 7 Resources | -11 -10 -10 -9 -9 -9 -8 -8 -8 -7 -7 -7 -7 -6 -6 -6 -6 -5 -5 -5 -5 -4 -4 -4 -4 -4 -4 -4 -4 -3 -3 -2 -2 -2 ----------- Run | Yrd Mat Min Mat Min Exi Min Mat Sto Fac Low Low Zio Pro Fac Low Low Fac Upp Upp War Pro Fac Was Fac Ext Cet Arc Hub Res Qua Res Tes Sec Matter Collected 2468 | 168 212 30 114 6 . 10 120 30 255 . 10 . . 180 10 30 90 11 30 . 20 110 . 267 90 . 10 10 230 70 10 300 45 Remotely . | . . . . . . . . . . . . . . . . . . . . . . . . . . . . . . . . . . Salvage Created 30518 | . 403 142 395 . . 106 963 1316 1537 74 457 . 314 2616 859 503 3263 852 1127 . 465 1759 . 3075 2267 486 222 486 1871 1018 634 2043 1265 Parts 1468 | . 39 1 17 . . 1 47 35 75 3 11 . 13 105 38 14 159 24 37 . 18 112 . 177 78 26 13 38 78 41 44 117 107 Haulers Intercepted 29 | . 1 . 2 . . . 6 . 2 . . . . 3 . . 7 . . . . . . 1 3 . . 1 1 2 . . . Recyclers Shooed 1 | . 1 . . . . . . . . . . . . . . . . . . . . . . . . . . . . . . . . Parts Field Recycled . | . . . . . . . . . . . . . . . . . . . . . . . . . . . . . . . . . . Retrieved Matter . | . . . . . . . . . . . . . . . . . . . . . . . . . . . . . . . . . . Parts Self-Destructed 147 | . . . . . . . . . . . 11 . 9 . 35 19 . 19 36 . 18 . . . . . . . . . . . . Prevented 7 | . . . . . . . . . . . . . . . 3 2 . 1 1 . . . . . . . . . . . . . . Kills | -11 -10 -10 -9 -9 -9 -8 -8 -8 -7 -7 -7 -7 -6 -6 -6 -6 -5 -5 -5 -5 -4 -4 -4 -4 -4 -4 -4 -4 -3 -3 -2 -2 -2 ------- Run | Yrd Mat Min Mat Min Exi Min Mat Sto Fac Low Low Zio Pro Fac Low Low Fac Upp Upp War Pro Fac Was Fac Ext Cet Arc Hub Res Qua Res Tes Sec Combat Hostiles Destroyed 499 | . 9 3 13 . . 5 20 28 29 . 5 . 3 45 18 5 53 5 17 . 6 30 . 55 27 9 4 11 26 10 14 28 21 Melee 448 | . . 1 9 . . 2 12 12 27 . 5 . 3 43 18 4 51 5 16 . 6 30 . 54 27 9 4 11 26 10 14 28 21 Guns 9 | . 9 . . . . . . . . . . . . . . . . . . . . . . . . . . . . . . . . Cannons 1 | . . . . . . . . . . . . . . . . . 1 . . . . . . . . . . . . . . . . Classes Destroyed 23 | . 5 . 1 . . 1 4 . 1 1 1 . . 1 . 1 . . . . 1 . . 2 . . . . . 1 . 2 1 Worker 4 | . . . . . . . 1 . . . . . . . . . 1 . . . . . . . . . . . . . . 2 . Builder 2 | . 2 . . . . . . . . . . . . . . . . . . . . . . . . . . . . . . . . Hauler 29 | . 1 . 2 . . . 6 . 2 . . . . 3 . . 7 . . . . . . 1 3 . . 1 1 2 . . . Recycler 1 | . . . . . . . . . 1 . . . . . . . . . . . . . . . . . . . . . . . . Operator 6 | . . . . . . . 1 . . . . . . 1 . . . . . . . 1 . . . . . 2 . . . 1 . Drone 2 | . . . . . . . . . . . . . . . . . . . . . 2 . . . . . . . . . . . . Watcher 53 | . 1 . 3 . . . 5 2 3 . . . . 2 . . 8 . . . . 8 . 8 1 . . 2 1 3 2 2 2 Swarmer 80 | . 3 . 6 . . 4 2 4 3 . . . . 12 3 . 15 . 4 . . 5 . 5 . . . 4 . . 10 . . Cutter 3 | . . . . . . . . . . . . . . . . . . . . . . . . 1 . . . 2 . . . . . Saboteur 1 | . . . . . . . . . . . . . . . . . . . . . . . . . . . . . . . . 1 . Grunt 190 | . 6 3 3 . . . 4 12 17 . 3 . . 20 10 . 25 4 6 . 3 7 . 28 8 . . 1 14 7 . 6 3 Brawler 8 | . . . . . . . 1 1 1 . . . . . . . . . 2 . . . . 2 . . . . . . . 1 . Duelist 14 | . . . . . . . 2 . 1 . 1 . . 2 . . . . 1 . . 2 . 2 1 . . . . . . 2 . Researcher 10 | . . . . . . . . . . . . . . . . . . . . . . . . . . . . . . 1 . 6 3 Sentry 80 | . . . 4 . . . 10 11 5 . . . 1 5 1 . 3 . 1 . 1 3 . 6 8 . 4 2 5 . 3 4 3 Specialist 6 | . . . . . . . . . . . . . . . . 3 . . . . . . . . . . . . . . . 3 . Hunter 50 | . . . . . . 1 1 . 2 . . . 2 5 2 2 2 . 3 . . 6 . 7 2 2 . 2 4 2 . 5 . Programmer 29 | . . . . . . . . . . . 1 . . . 1 . 8 . . . . 6 . 2 . . . . 1 1 1 2 6 Heavy 2 | . . . . . . . . . . . . . . . . . . . . . . . . 1 . . . . . . . . 1 Behemoth 9 | . . . . . . . . . . . . . . 1 1 . . 1 . . . 1 . 1 1 . . . 2 . . . 1 Cetus Guard 7 | . . . . . . . . . . . . . . . . . . . . . . . . . . 7 . . . . . . . S7 Guard 2 | . . . . . . . . . . . . . . . . . . . . . . . . . . . . . . . . . 2 Tracker 2 | . . . . . . . . . . . . . . . . . . . . . . . . . . . . . . . . . 2 Combat Programmer 1 | . . . . . . . . . . . . . . . . . . . . . . . . . . . . . . . . . 1 Striker 2 | . . . . . . . . . . . . . . . . . . . . . . . . . . . . . . . . 2 . Superbehemoth 1 | . . . . . . . . . . . . . . . . . . . . . . . . . . . . . . . . 1 . Alpha 7 2 | . . . . . . . . . . . . . . . . . . . . . . . . . . . . . . . . . 2 Protovariant G 1 | . . . . . . . . . . . . . . . . . . . . . . . . . . . . . . . . 1 . Decomposer 2 | . . . . . . . . . . . . . 2 . . . . . . . . . . . . . . . . . . . . Samaritan 5 | . . . . . . . . . . 2 . . 3 . . . . . . . . . . . . . . . . . . . . Thug 2 | . . . . . . . . . . . . . . . . . . . . . . . . . 2 . . . . . . . . Savage 2 | . . . . . . . . . . . . . . . . . . . . . . . . . 2 . . . . . . . . Butcher 1 | . . . . . . . . . . . . . . . . . . . . . . . . . 1 . . . . . . . . Guerrilla 2 | . . . . . . . . . . . . . . . . . . . . . . . . . 2 . . . . . . . . Best Kill Streak 17 | . 6 2 6 . . 4 8 10 7 . 3 . 2 11 7 5 17 4 6 . 3 11 . 7 7 4 4 7 9 5 11 11 7 Combat Bots Only 15 | . 3 2 5 . . 4 4 9 7 . 3 . 2 11 7 5 15 4 6 . 3 7 . 7 6 4 4 5 9 3 9 8 4 Max Kills in Single Turn 3 | . 1 1 1 . . 1 1 1 1 1 1 . 1 2 2 2 2 2 2 . 1 2 . 3 2 2 1 1 2 2 2 1 1 Gunslinging . | . . . . . . . . . . . . . . . . . . . . . . . . . . . . . . . . . . Exploded . | . . . . . . . . . . . . . . . . . . . . . . . . . . . . . . . . . . Melee 3 | . . 1 1 . . 1 1 1 1 . 1 . 1 2 2 2 2 2 2 . 1 2 . 3 2 2 1 1 2 2 2 1 1 Uniques/NPCs Destroyed . | . . . . . . . . . . . . . . . . . . . . . . . . . . . . . . . . . . Combat | -11 -10 -10 -9 -9 -9 -8 -8 -8 -7 -7 -7 -7 -6 -6 -6 -6 -5 -5 -5 -5 -4 -4 -4 -4 -4 -4 -4 -4 -3 -3 -2 -2 -2 -------- Run | Yrd Mat Min Mat Min Exi Min Mat Sto Fac Low Low Zio Pro Fac Low Low Fac Upp Upp War Pro Fac Was Fac Ext Cet Arc Hub Res Qua Res Tes Sec Hostile Shots Fired 1935 | . 54 5 67 1 . 18 84 97 168 . 27 . 9 214 55 15 164 16 32 . 8 128 1 227 64 58 12 28 94 38 44 128 79 Missed 1058 | . 13 . 23 1 . 6 38 41 79 . 12 . 3 134 34 8 97 8 15 . 3 81 1 146 34 34 7 18 65 24 30 72 31 Damage Taken 16961 | . 452 66 539 . . 129 714 747 1040 . 264 . 146 1176 408 121 1274 184 289 . 96 1042 . 2481 662 546 132 234 574 312 319 1687 1327 Core 13674 | . 385 50 454 . . 112 477 476 785 . 220 . 123 951 339 94 1045 156 238 . 88 855 . 2052 546 456 115 183 458 257 264 1382 1113 Absorbed by Shields 264 | . . . . . . . . . . . . . . . . . . . . . . 11 . . 131 122 . . . . . . . Redirected to Core 10243 | . 217 50 297 . . 54 372 339 504 . 158 . 76 763 250 94 827 102 176 . 28 672 . 1519 421 337 61 183 411 188 194 1143 807 Core Remaining (%) 86 | 100 . 96 . . . 88 . 48 . . . . 82 . . 84 . . . . 85 . . . . . . 100 . 95 . . . Volleys Fired 36 | . 36 . . . . . . . . . . . . . . . . . . . . . . . . . . . . . . . . Largest 2 | . 2 . . . . . . . . . . . . . . . . . . . . . . . . . . . . . . . . Hottest 115 | . 115 . . . . . . . . . . . . . . . . . . . . . . . . . . . . . . . . Shots Fired 70 | . 70 . . . . . . . . . . . . . . . . . . . . . . . . . . . . . . . . Gun 70 | . 70 . . . . . . . . . . . . . . . . . . . . . . . . . . . . . . . . Cannon . | . . . . . . . . . . . . . . . . . . . . . . . . . . . . . . . . . . Launcher . | . . . . . . . . . . . . . . . . . . . . . . . . . . . . . . . . . . Special . | . . . . . . . . . . . . . . . . . . . . . . . . . . . . . . . . . . Kinetic . | . . . . . . . . . . . . . . . . . . . . . . . . . . . . . . . . . . Thermal 70 | . 70 . . . . . . . . . . . . . . . . . . . . . . . . . . . . . . . . Explosive . | . . . . . . . . . . . . . . . . . . . . . . . . . . . . . . . . . . Electromagnetic . | . . . . . . . . . . . . . . . . . . . . . . . . . . . . . . . . . . Robot Hit Streak 5 | . 5 . . . . . . . . . . . . . . . . . . . . . . . . . . . . . . . . Robot Miss Streak 5 | . 5 . . . . . . . . . . . . . . . . . . . . . . . . . . . . . . . . Penetration Max . | . . . . . . . . . . . . . . . . . . . . . . . . . . . . . . . . . . Secondary Targets 3 | . 3 . . . . . . . . . . . . . . . . . . . . . . . . . . . . . . . . Max Gunslinging Chain 1 | . 1 . . . . . . . . . . . . . . . . . . . . . . . . . . . . . . . . Shots Hit Robots 1516 | . 37 3 40 3 . 8 75 86 90 2 17 . 14 140 41 13 144 27 32 . 11 84 . 143 93 29 7 25 74 39 30 121 88 Core Hits 657 | . 23 1 8 . . . 15 8 35 2 5 . 7 59 22 4 76 17 15 . 7 43 . 73 38 15 6 17 39 10 15 60 37 Critical Kills 12 | . . . 2 . . . 4 2 . . . . . . 1 . 2 . . . . 1 . . . . . . . . . . . Critical Parts Destroyed 46 | . . 1 6 . . 2 9 15 2 . 1 . . 4 1 . 2 . . . . 3 . . . . . . . . . . . Critical Strikes 252 | . . 1 8 . . 2 13 20 10 . 4 . 2 22 5 1 16 1 3 . 1 19 . 24 21 5 1 3 19 11 5 19 16 Smash 61 | . . 1 8 . . 2 13 19 2 . 1 . . 4 2 . 4 . 1 . . 4 . . . . . . . . . . . Sever 8 | . . . . . . . . 1 . . . . . . . . . . . . . . . . . . . . 1 . 1 2 3 Impale 151 | . . . . . . . . . 8 . 3 . 2 18 3 1 12 1 2 . 1 15 . 20 15 2 1 2 10 11 4 12 8 Sunder 32 | . . . . . . . . . . . . . . . . . . . . . . . . 4 6 3 . 1 8 . . 5 5 Melee Attacks 1960 | . 2 4 67 4 . 12 90 106 106 4 23 2 18 172 49 17 179 38 39 . 15 100 . 194 119 30 11 49 87 69 46 178 130 Impact 405 | . 2 4 67 4 . 12 85 84 25 2 7 . 3 37 12 2 26 4 5 . 1 13 . 10 . . . . . . . . . Slashing 151 | . . . . . . . 5 22 . . . . . . . . . . . . . . . 30 10 5 2 6 11 11 10 25 14 Piercing 1234 | . . . . . . . . . 81 2 16 2 15 135 37 15 153 34 34 . 10 85 . 120 80 18 7 35 57 51 32 123 92 Entropic 170 | . . . . . . . . . . . . . . . . . . . . . 4 2 . 34 29 7 2 8 19 7 4 30 24 Sneak Attacks 131 | . . . 4 . . . 10 . 11 2 . . 7 11 2 3 13 . 10 . 1 . . 3 22 . . 1 4 7 . 11 9 Combat Hostiles 51 | . . . 1 . . . 1 . 7 . . . 1 5 2 3 2 . 8 . 1 . . 2 5 . . . 3 3 . 2 5 Follow-up Attacks 559 | . . . 7 . . . 17 29 23 . 5 . 2 50 16 5 48 7 12 . 5 32 . 67 45 17 2 5 39 14 13 58 41 Damage Inflicted 91642 | . 476 159 2044 134 . 410 3812 3488 3990 186 931 . 954 7176 2248 847 7593 1651 1964 . 597 5410 . 9898 7040 2012 522 1639 5221 3370 2161 8914 6795 Guns 476 | . 476 . . . . . . . . . . . . . . . . . . . . . . . . . . . . . . . . Cannons . | . . . . . . . . . . . . . . . . . . . . . . . . . . . . . . . . . . Explosions . | . . . . . . . . . . . . . . . . . . . . . . . . . . . . . . . . . . Melee 91166 | . . 159 2044 134 . 410 3812 3488 3990 186 931 . 954 7176 2248 847 7593 1651 1964 . 597 5410 . 9898 7040 2012 522 1639 5221 3370 2161 8914 6795 Ramming . | . . . . . . . . . . . . . . . . . . . . . . . . . . . . . . . . . . Kinetic . | . . . . . . . . . . . . . . . . . . . . . . . . . . . . . . . . . . Thermal 476 | . 476 . . . . . . . . . . . . . . . . . . . . . . . . . . . . . . . . Explosive . | . . . . . . . . . . . . . . . . . . . . . . . . . . . . . . . . . . Electromagnetic . | . . . . . . . . . . . . . . . . . . . . . . . . . . . . . . . . . . Impact 14778 | . . 159 2044 134 . 410 3719 3026 1056 . 296 . 70 1224 444 176 841 48 373 . 51 540 . 167 . . . . . . . . . Slashing 5075 | . . . . . . . 93 462 . . . . . . . . . . . . . . . 1043 612 248 . 139 586 131 370 954 437 Piercing 59655 | . . . . . . . . . 2934 186 635 . 884 5952 1804 671 6752 1603 1591 . 447 4667 . 6080 4398 1124 429 1398 2992 2801 1681 5889 4737 Entropic 11658 | . . . . . . . . . . . . . . . . . . . . . 99 203 . 2608 2030 640 93 102 1643 438 110 2071 1621 Highest Corruption 11 | . . . . . . . . . . . . . . . . . 5 5 5 5 . 1 11 10 . . . . . 2 . . . Average Corruption 2 | . . . . . . . . . . . . . . . . . 3 5 5 5 . 1 7 1 . . . . . 1 . . . Corruption Purged 13 | . . . . . . . . . . . . . . . . . . . . . . . 1 12 . . . . . . . . . Corruption Blocked 15 | . . . . . . . . . . . . . . . . . . . . . . . . . . . . . . . . 4 11 Effects 49 | . . . . . . . . . . . . . . . . . 8 4 7 . . 5 4 16 . . . . . 5 . . . Message Errors 10 | . . . . . . . . . . . . . . . . . 4 . 1 . . 1 . 3 . . . . . 1 . . . Matter Fused 14 | . . . . . . . . . . . . . . . . . . 2 3 . . . 1 8 . . . . . . . . . Heat Flow Errors 4 | . . . . . . . . . . . . . . . . . . 1 . . . 1 . 1 . . . . . 1 . . . Energy Discharges 8 | . . . . . . . . . . . . . . . . . 2 . 2 . . . 1 1 . . . . . 2 . . . Parts Rejected 1 | . . . . . . . . . . . . . . . . . 1 . . . . . . . . . . . . . . . . Parts Fused 1 | . . . . . . . . . . . . . . . . . . . . . . . . 1 . . . . . . . . . Data Loss (minor) 7 | . . . . . . . . . . . . . . . . . . 1 1 . . 3 . 1 . . . . . 1 . . . Data Loss (major) 1 | . . . . . . . . . . . . . . . . . 1 . . . . . . . . . . . . . . . . Alerts 1 | . . . . . . . . . . . . . . . . . . . . . . . . 1 . . . . . . . . . Misdirections 2 | . . . . . . . . . . . . . . . . . . . . . . . 2 . . . . . . . . . . Overload Shots . | . . . . . . . . . . . . . . . . . . . . . . . . . . . . . . . . . . Overflow Damage 11530 | . . 77 589 9 . 289 1007 979 497 . 280 . 216 650 118 113 653 244 199 . 17 809 . 909 362 55 . 105 154 1243 393 1089 474 Projectiles 40 | . . . . . . . . . . . . . . . . . 40 . . . . . . . . . . . . . . . . Explosions . | . . . . . . . . . . . . . . . . . . . . . . . . . . . . . . . . . . Melee 11490 | . . 77 589 9 . 289 1007 979 497 . 280 . 216 650 118 113 613 244 199 . 17 809 . 909 362 55 . 105 154 1243 393 1089 474 Knockbacks 33 | . . 1 3 . . . 7 4 3 . 2 . . 5 1 1 2 . 1 . 1 2 . . . . . . . . . . . Impact 33 | . . 1 3 . . . 7 4 3 . 2 . . 5 1 1 2 . 1 . 1 2 . . . . . . . . . . . Kinetic . | . . . . . . . . . . . . . . . . . . . . . . . . . . . . . . . . . . Secondary . | . . . . . . . . . . . . . . . . . . . . . . . . . . . . . . . . . . Self-Inflicted Damage . | . . . . . . . . . . . . . . . . . . . . . . . . . . . . . . . . . . Shots . | . . . . . . . . . . . . . . . . . . . . . . . . . . . . . . . . . . Rammed . | . . . . . . . . . . . . . . . . . . . . . . . . . . . . . . . . . . Targets Rammed . | . . . . . . . . . . . . . . . . . . . . . . . . . . . . . . . . . . Kicked . | . . . . . . . . . . . . . . . . . . . . . . . . . . . . . . . . . . Crushed . | . . . . . . . . . . . . . . . . . . . . . . . . . . . . . . . . . . Highest Temperature 435 | . 150 . 11 . . 1 101 26 12 1 5 1 8 24 140 110 435 253 3 . . 140 14 242 12 2 . 21 35 211 144 69 12 Average Temperature 33 | . 55 . 11 . . 1 29 8 4 1 1 1 1 4 57 53 138 139 3 . . 68 8 46 4 1 . 7 8 121 57 11 4 Received Heat Transfer 3304 | . 186 36 144 . . . 225 378 330 . 117 . 12 291 129 18 357 51 36 . 30 87 . 344 73 73 18 36 84 42 9 99 99 Effects 1 | . . . . . . . . . . . . . . . . . 1 . . . . . . . . . . . . . . . . Short Circuit 1 | . . . . . . . . . . . . . . . . . 1 . . . . . . . . . . . . . . . . Siege Activations . | . . . . . . . . . . . . . . . . . . . . . . . . . . . . . . . . . . Robots Corrupted 57 | . . 2 7 . . 3 16 17 4 . 1 . . 3 . 1 1 . 1 . . . . 1 . . . . . . . . . Combat Hostiles 42 | . . 2 4 . . 3 8 16 2 . 1 . . 2 . 1 1 . 1 . . . . 1 . . . . . . . . . Parts Fried 66 | . . 2 10 . . 5 18 20 5 . . . . 2 . . 1 . 2 . . . . 1 . . . . . . . . . Impact Corruptions 160 | . . 3 18 1 . 9 44 42 8 . 3 . . 12 1 3 8 . 3 . . 4 . 1 . . . . . . . . . Robots Melted . | . . . . . . . . . . . . . . . . . . . . . . . . . . . . . . . . . . Combat Hostiles . | . . . . . . . . . . . . . . . . . . . . . . . . . . . . . . . . . . Parts Melted 2 | . 1 . . . . . . . . . . . . . 1 . . . . . . . . . . . . . . . . . . Heat Transferred 1146 | . 1146 . . . . . . . . . . . . . . . . . . . . . . . . . . . . . . . . Parts Sabotaged 2 | . . . . . . . . . . . . . . . . . . . . . . . . 2 . . . . . . . . . Parts Stolen . | . . . . . . . . . . . . . . . . . . . . . . . . . . . . . . . . . . Parts Stripped . | . . . . . . . . . . . . . . . . . . . . . . . . . . . . . . . . . . Power Chain Reactions . | . . . . . . . . . . . . . . . . . . . . . . . . . . . . . . . . . . Alert | -11 -10 -10 -9 -9 -9 -8 -8 -8 -7 -7 -7 -7 -6 -6 -6 -6 -5 -5 -5 -5 -4 -4 -4 -4 -4 -4 -4 -4 -3 -3 -2 -2 -2 ------- Run | Yrd Mat Min Mat Min Exi Min Mat Sto Fac Low Low Zio Pro Fac Low Low Fac Upp Upp War Pro Fac Was Fac Ext Cet Arc Hub Res Qua Res Tes Sec Peak Influence 1156 | . 304 107 507 226 . 155 521 648 572 . . . . 781 . . 1156 . . . . 651 186 970 852 839 562 590 1123 800 1055 1114 1113 Initial 626 | . . 1 41 146 . . 60 62 203 . . . . 49 . . 529 . . . . 63 126 109 446 476 335 196 309 477 363 593 626 Average 477 | . 133 53 251 188 . 97 233 373 347 . . . . 264 . . 813 . . . . 310 150 532 569 719 527 370 691 641 698 862 776 Maximum Alert Level 4 | . 1 . 2 1 . . 2 2 2 . . . . 3 . . 4 . . . . 2 . 3 3 3 2 2 4 3 3 4 4 Low Security (%) 19 | 100 63 100 39 56 . 100 46 20 7 . . . . 37 . . . . . . . 28 100 6 3 . . 7 . . . . . Level 1 25 | . 36 . 47 43 . . 40 35 62 . . . . 45 . . . . . . . 48 . 23 7 . 9 48 11 . 10 . . Level 2 31 | . . . 12 . . . 12 43 29 . . . . 11 . . 37 . . . . 23 . 50 67 52 90 43 40 69 31 6 42 Level 3 22 | . . . . . . . . . . . . . . 6 . . 52 . . . . . . 19 21 47 . . 46 30 58 91 54 Level 4 1 | . . . . . . . . . . . . . . . . . 10 . . . . . . . . . . . 1 . . 1 3 Level 5 . | . . . . . . . . . . . . . . . . . . . . . . . . . . . . . . . . . . High Security . | . . . . . . . . . . . . . . . . . . . . . . . . . . . . . . . . . . Max Security . | . . . . . . . . . . . . . . . . . . . . . . . . . . . . . . . . . . Squads Dispatched 81 | . 2 1 2 . . . 4 3 7 . . . . 10 . . 10 . . . . 5 . 9 1 1 . 5 5 1 1 7 7 Investigation 29 | . 1 . . . . . 1 1 5 . . . . 6 . . 1 . . . . 1 . 4 . 1 . 1 2 1 1 2 1 Extermination 10 | . . . . . . . . . . . . . . 1 . . 2 . . . . 2 . 1 . . . . . . . 2 2 Reinforcement 26 | . 1 . 2 . . . . 2 1 . . . . 3 . . 5 . . . . . . 3 1 . . 4 3 . . . 1 Assault 9 | . . 1 . . . . . . . . . . . . . . 2 . . . . 2 . 1 . . . . . . . 3 . Garrison 4 | . . . . . . . 3 . 1 . . . . . . . . . . . . . . . . . . . . . . . . Intercept 3 | . . . . . . . . . . . . . . . . . . . . . . . . . . . . . . . . . 3 Searches Triggered 1 | . . . . . . . . . . . . . . . . . . . . . . . . 1 . . . . . . . . . Construction Impeded . | . . . . . . . . . . . . . . . . . . . . . . . . . . . . . . . . . . Haulers Reinforced 7 | . . . . . . . . . 1 . . . . 2 . . 3 . . . . . . . . . . . 1 . . . . Active Scanning Responses . | . . . . . . . . . . . . . . . . . . . . . . . . . . . . . . . . . . Cargo Convoy Interrupts . | . . . . . . . . . . . . . . . . . . . . . . . . . . . . . . . . . . Stealth | -11 -10 -10 -9 -9 -9 -8 -8 -8 -7 -7 -7 -7 -6 -6 -6 -6 -5 -5 -5 -5 -4 -4 -4 -4 -4 -4 -4 -4 -3 -3 -2 -2 -2 --------- Run | Yrd Mat Min Mat Min Exi Min Mat Sto Fac Low Low Zio Pro Fac Low Low Fac Upp Upp War Pro Fac Was Fac Ext Cet Arc Hub Res Qua Res Tes Sec Distress Signals 24 | . . . 2 . . . 2 3 . . . . . . . . 1 . . . . 3 . 1 1 2 . . 3 . 4 2 . Communications Jammed 185 | . . . . . . . . . . . . . . 1 . . 32 . . . 1 14 . 35 46 13 . 1 1 11 18 10 2 Distress Signals 173 | . . . . . . . . . . . . . . 1 . . 32 . . . . 9 . 31 46 13 . 1 1 11 18 10 . Times Spotted 676 | . 13 6 29 6 . 5 30 42 37 . 5 . 2 56 20 3 68 5 12 . 5 47 6 80 25 12 4 20 30 14 28 40 26 Peak Tracking Total 12 | . 3 3 7 3 . 4 4 12 3 . 3 . 1 5 7 3 11 4 5 . 3 10 6 6 5 5 3 5 4 4 11 10 4 Tactical Retreats 38 | . . . 3 2 . 1 1 5 2 . . . . 1 . . 3 . 1 . . 1 . 5 . . . 4 . 1 3 3 2 Traps | -11 -10 -10 -9 -9 -9 -8 -8 -8 -7 -7 -7 -7 -6 -6 -6 -6 -5 -5 -5 -5 -4 -4 -4 -4 -4 -4 -4 -4 -3 -3 -2 -2 -2 ------- Run | Yrd Mat Min Mat Min Exi Min Mat Sto Fac Low Low Zio Pro Fac Low Low Fac Upp Upp War Pro Fac Was Fac Ext Cet Arc Hub Res Qua Res Tes Sec Traps Triggered 15 | . 2 . . . . . . . . . . . . 1 . . 1 . . . . 4 . . 2 . . . 3 2 . . . Indirectly . | . . . . . . . . . . . . . . . . . . . . . . . . . . . . . . . . . . Trap Hack Attempts . | . . . . . . . . . . . . . . . . . . . . . . . . . . . . . . . . . . Triggered . | . . . . . . . . . . . . . . . . . . . . . . . . . . . . . . . . . . Disarmed . | . . . . . . . . . . . . . . . . . . . . . . . . . . . . . . . . . . Reprogrammed 5 | . . . . . . . . . . . . . . . . . . . . . . . . . 5 . . . . . . . . Reused . | . . . . . . . . . . . . . . . . . . . . . . . . . . . . . . . . . . Traps Extracted . | . . . . . . . . . . . . . . . . . . . . . . . . . . . . . . . . . . Installed . | . . . . . . . . . . . . . . . . . . . . . . . . . . . . . . . . . . Triggered 8 | . . . . . . . . . . . . . . . . 1 . . . 7 . . . . . . . . . . . . . Machines | -11 -10 -10 -9 -9 -9 -8 -8 -8 -7 -7 -7 -7 -6 -6 -6 -6 -5 -5 -5 -5 -4 -4 -4 -4 -4 -4 -4 -4 -3 -3 -2 -2 -2 ---------- Run | Yrd Mat Min Mat Min Exi Min Mat Sto Fac Low Low Zio Pro Fac Low Low Fac Upp Upp War Pro Fac Was Fac Ext Cet Arc Hub Res Qua Res Tes Sec Machines Disabled 24 | . . . 1 . . . 1 1 . . . . . 1 . 1 . . . . . . . . 2 . 1 1 . 2 . 11 2 Max in Single Turn 1 | . . . 1 . . . 1 1 . . . . . . . 1 . . . . . . . . 1 . . . . 1 . 1 1 Garrison Access 20 | . . . . . . . 1 1 3 . . . . 3 . . 3 . . . . 1 . 3 . . . . 1 1 2 . 1 Machines Repaired . | . . . . . . . . . . . . . . . . . . . . . . . . . . . . . . . . . . Machines Dismantled . | . . . . . . . . . . . . . . . . . . . . . . . . . . . . . . . . . . Machines Sabotaged . | . . . . . . . . . . . . . . . . . . . . . . . . . . . . . . . . . . Overloaded Fab Kills . | . . . . . . . . . . . . . . . . . . . . . . . . . . . . . . . . . . Hacking | -11 -10 -10 -9 -9 -9 -8 -8 -8 -7 -7 -7 -7 -6 -6 -6 -6 -5 -5 -5 -5 -4 -4 -4 -4 -4 -4 -4 -4 -3 -3 -2 -2 -2 --------- Run | Yrd Mat Min Mat Min Exi Min Mat Sto Fac Low Low Zio Pro Fac Low Low Fac Upp Upp War Pro Fac Was Fac Ext Cet Arc Hub Res Qua Res Tes Sec Machines Accessed 233 | . 6 1 9 . 1 . 10 9 24 . 1 . 1 28 . . 20 . 1 3 . 15 . 21 14 3 1 12 13 15 5 11 9 Terminals 179 | . 6 . 9 . . . 9 8 16 . . . 1 19 . . 16 . . . . 13 . 14 14 3 . 12 9 11 3 9 7 Fabricators 17 | . . . . . . . . . 5 . . . . 4 . . 1 . . . . . . 4 . . . . 2 . . 1 . Repair Stations 2 | . . . . . . . . . . . . . . 1 . . . . . . . . . . . . . . . 1 . . . Recycling Units . | . . . . . . . . . . . . . . . . . . . . . . . . . . . . . . . . . . Scanalyzers 4 | . . . . . . . . . . . . . . . . . . . . . . . . . . . . . 1 2 . . 1 Garrison Access 23 | . . . . . . . 1 1 3 . . . . 4 . . 3 . . . . 2 . 3 . . . . 1 1 2 1 1 Total Hacks 944 | . 31 1 36 . 4 . 64 54 96 . 1 . 8 124 . . 67 . 1 3 . 51 . 68 63 15 25 44 36 47 22 55 28 Successful 602 | . 20 1 23 . 4 . 46 50 65 . 1 . 8 73 . . 42 . 1 3 . 30 . 42 38 8 25 22 20 22 11 32 15 Failed 337 | . 10 . 12 . . . 17 4 30 . . . . 50 . . 25 . . . . 21 . 26 25 7 . 22 16 25 11 23 13 Catastrophic 40 | . 1 . . . . . 1 . 3 . . . . 4 . . 2 . . . . 4 . 2 1 1 . 5 3 3 2 4 4 Database Lockouts 5 | . 1 . 1 . . . 1 . 1 . . . . 1 . . . . . . . . . . . . . . . . . . . Manual 491 | . 24 . 23 . . . 45 32 64 . . . . 71 . 1 35 . . . . 32 . 32 36 3 1 17 8 22 14 26 5 Terminals 792 | . 31 . 36 . . . 61 53 75 . . . 8 101 . . 59 . . . . 46 . 46 63 15 . 44 28 38 19 44 25 Fabricators 62 | . . . . . . . . . 18 . . . . 10 . . 4 . . . . . . 17 . . . . 4 . . 9 . Repair Stations 3 | . . . . . . . . . . . . . . 1 . . . . . . . . . . . . . . . 2 . . . Recycling Units . | . . . . . . . . . . . . . . . . . . . . . . . . . . . . . . . . . . Scanalyzers 11 | . . . . . . . . . . . . . . . . . . . . . . . . . . . . . 3 6 . . 2 Garrison Access 41 | . . . . . . . 3 1 3 . . . . 12 . . 4 . . . . 5 . 5 . . . . 1 1 3 2 1 Terminal Hacks 376 | . 13 1 15 . 4 . 36 39 28 . 1 . 8 34 . . 29 . 1 3 . 18 . 18 25 8 25 14 11 13 4 20 8 Record 48 | . . . . . 4 . . . . . . . 8 . . . 1 . . 1 . . . . 1 7 25 . . 1 . . . Part Schematic 33 | . . . . . . . 5 2 5 . . . . 6 . . 6 . . . . 2 . 1 2 . . . 1 2 . 1 . Robot Schematic 3 | . . . . . . . . 1 . . . . . 1 . . 1 . . . . . . . . . . . . . . . . Robot Analysis 13 | . . . 1 . . . . 1 3 . . . . 3 . . . . . . . . . . 1 . . 2 . 2 . . . Prototype ID Bank 46 | . 5 . 4 . . . 10 18 1 . . . . 5 . . . . . . . . . . 2 . . 1 . . . . . Open Door 17 | . . 1 . . . . . 2 . . 1 . . . . . . . 1 2 . . . 1 6 1 . . . 1 . 1 . Open DSF 9 | . . . . . . . . . 1 . . . . 1 . . 3 . . . . 1 . 2 . . . . 1 . . . . Level Access Points 7 | . 1 . 1 . . . 1 . 1 . . . . . . . . . . . . . . 1 . . . . 1 . 1 . . Branch Access Points 12 | . 1 . . . . . 1 1 1 . . . . 1 . . 1 . . . . 1 . 1 1 . . 1 1 . . 1 . Emergency Access Points 1 | . . . . . . . 1 . . . . . . . . . . . . . . . . . . . . . . . . . . Machine Index 5 | . . . . . . . . . 1 . . . . . . . 1 . . . . . . . . . . 1 1 . . . 1 Terminal Index 11 | . 1 . 1 . . . 1 1 . . . . . 1 . . . . . . . 1 . 1 . . . . 1 1 . 1 1 Fabricator Index 4 | . . . . . . . 1 . . . . . . 1 . . . . . . . . . 1 . . . . . . 1 . . Garrison Index 1 | . . . . . . . . 1 . . . . . . . . . . . . . . . . . . . . . . . . . Alert Level 44 | . 2 . 1 . . . 5 3 6 . . . . 6 . . 4 . . . . 5 . 2 3 . . 1 1 1 1 2 1 Unreport Threat 43 | . 1 . 1 . . . 4 3 3 . . . . 3 . . 6 . . . . 3 . 4 3 . . 2 2 1 . 4 3 Locate Traps 1 | . . . . . . . . . . . . . . . . . 1 . . . . . . . . . . . . . . . . Reprogram Traps 1 | . . . . . . . . . . . . . . . . . . . . . . . . . 1 . . . . . . . . Dispatch Records 1 | . . . . . . . . . . . . . . 1 . . . . . . . . . . . . . . . . . . . Security Status 1 | . . . . . . . . . . . . . . . . . . . . . . . . . . . . 1 . . . . . Transport Status 1 | . . . . . . . . . . . . . . 1 . . . . . . . . . . . . . . . . . . . Reinforcement Status 1 | . . . . . . . . . . . . . . . . . 1 . . . . . . . . . . . . . . . . Recall Investigation 1 | . . . 1 . . . . . . . . . . . . . . . . . . . . . . . . . . . . . . Recall Reinforcements 6 | . . . . . . . 1 . . . . . . . . . 2 . . . . . . 1 1 . . 1 . . . . . Hauler Manifests 13 | . 1 . 1 . . . 1 1 1 . . . . 1 . . . . . . . 1 . 1 1 . . . 1 . . 2 1 Registered Components 16 | . 1 . 1 . . . 1 2 1 . . . . 1 . . 1 . . . . 1 . 1 1 . . 1 1 1 1 1 . Registered Prototypes 10 | . . . 1 . . . . . 1 . . . . 1 . . 1 . . . . 3 . 1 . . . 1 . . . 1 . Zone Layout 25 | . . . 2 . . . 4 3 3 . . . . 1 . . . . . . . . . . 2 . . 2 . 3 . 4 1 Protovariant Controls 2 | . . . . . . . . . . . . . . . . . . . . . . . . . . . . . . . . 2 . Fabricator Hacks 30 | . . . . . . . . . 8 . . . . 8 . . 2 . . . . . . 8 . . . . 2 . . 2 . Load Schematic 15 | . . . . . . . . . 4 . . . . 4 . . 1 . . . . . . 4 . . . . 1 . . 1 . Build 15 | . . . . . . . . . 4 . . . . 4 . . 1 . . . . . . 4 . . . . 1 . . 1 . Repair Station Hacks . | . . . . . . . . . . . . . . . . . . . . . . . . . . . . . . . . . . Recycling Unit Hacks . | . . . . . . . . . . . . . . . . . . . . . . . . . . . . . . . . . . Scanalyzer 7 | . . . . . . . . . . . . . . . . . . . . . . . . . . . . . 3 3 . . 1 Insert Component 5 | . . . . . . . . . . . . . . . . . . . . . . . . . . . . . 1 3 . . 1 Analyze 2 | . . . . . . . . . . . . . . . . . . . . . . . . . . . . . 2 . . . . Garrison Access Hacks 20 | . . . . . . . 1 1 3 . . . . 3 . . 3 . . . . 1 . 3 . . . . 1 1 2 . 1 Seal Access 20 | . . . . . . . 1 1 3 . . . . 3 . . 3 . . . . 1 . 3 . . . . 1 1 2 . 1 Unauthorized Hacks 169 | . 7 . 8 . . . 9 10 26 . . . . 28 . . 8 . . . . 11 . 13 13 . . 8 3 5 5 10 5 Terminals 138 | . 7 . 8 . . . 7 10 19 . . . . 19 . . 7 . . . . 8 . 8 13 . . 8 3 4 5 7 5 Track 21 | . . . 1 . . . . 2 6 . . . . 4 . . . . . . . . . 1 3 . . . . . 1 2 1 Assimilate 24 | . 2 . 1 . . . 1 1 1 . . . . 3 . . 2 . . . . 4 . 2 4 . . 1 . . . 1 1 Botnet 48 | . 3 . 3 . . . 3 3 3 . . . . 3 . . 3 . . . . 3 . 3 3 . . 3 3 3 3 3 3 Disrupt 26 | . . . 1 . . . 2 2 8 . . . . 7 . . 1 . . . . . . 1 2 . . 2 . . . . . Operators 18 | . 1 . 2 . . . 1 2 1 . . . . 2 . . 1 . . . . 1 . 1 1 . . 2 . 1 1 1 . Search 1 | . 1 . . . . . . . . . . . . . . . . . . . . . . . . . . . . . . . . Fabricators 18 | . . . . . . . . . 7 . . . . 2 . . 1 . . . . . . 5 . . . . . . . 3 . Report 5 | . . . . . . . . . 3 . . . . . . . . . . . . . . 1 . . . . . . . 1 . Prioritize 11 | . . . . . . . . . 3 . . . . 2 . . 1 . . . . . . 4 . . . . . . . 1 . Haulers 2 | . . . . . . . . . 1 . . . . . . . . . . . . . . . . . . . . . . 1 . Repair Stations 2 | . . . . . . . . . . . . . . 1 . . . . . . . . . . . . . . . 1 . . . Mechanics 2 | . . . . . . . . . . . . . . 1 . . . . . . . . . . . . . . . 1 . . . Recycling Units . | . . . . . . . . . . . . . . . . . . . . . . . . . . . . . . . . . . Scanalyzers . | . . . . . . . . . . . . . . . . . . . . . . . . . . . . . . . . . . Garrison Access 11 | . . . . . . . 2 . . . . . . 6 . . . . . . . 3 . . . . . . . . . . . Broadcast 3 | . . . . . . . 1 . . . . . . 1 . . . . . . . 1 . . . . . . . . . . . Decoy 1 | . . . . . . . . . . . . . . 1 . . . . . . . . . . . . . . . . . . . Redirect 2 | . . . . . . . . . . . . . . 1 . . . . . . . 1 . . . . . . . . . . . Reprogram 1 | . . . . . . . . . . . . . . 1 . . . . . . . . . . . . . . . . . . . Intercept 1 | . . . . . . . . . . . . . . 1 . . . . . . . . . . . . . . . . . . . Watchers 3 | . . . . . . . 1 . . . . . . 1 . . . . . . . 1 . . . . . . . . . . . Data Cores Recovered 5 | . . . . . . . 1 . . . . . . 1 . . . . . . . 1 . . . . . 1 . . . 1 . Used 1 | . . . . . . . . . . . . . . . . . . . . . . . . . . . . 1 . . . . . Hacking Detections 174 | . 4 . 6 . . . 9 6 19 . . . 1 21 . . 15 . . . . 13 . 16 9 2 . 12 10 12 3 9 7 Full Trace Events 26 | . . . . . . . 1 1 5 . . . . 5 . . 1 . . . . 1 . 4 . 1 . 1 1 1 1 2 1 Feedback Events 1 | . . . . . . . . . . . . . . . . . . . . . . . . . . . . . . . . . 1 Corruption 1 | . . . . . . . . . . . . . . . . . . . . . . . . . . . . . . . . . 1 Feedback Blocked . | . . . . . . . . . . . . . . . . . . . . . . . . . . . . . . . . . . Robot Schematics Acquired 11 | . . . . . . . . 1 . . . 2 . 1 . . 1 . . . . . . . . . . . . . . 2 4 Robots Built . | . . . . . . . . . . . . . . . . . . . . . . . . . . . . . . . . . . Authchips . | . . . . . . . . . . . . . . . . . . . . . . . . . . . . . . . . . . Time . | . . . . . . . . . . . . . . . . . . . . . . . . . . . . . . . . . . Total Robot Build Rating . | . . . . . . . . . . . . . . . . . . . . . . . . . . . . . . . . . . Part Schematics Acquired 69 | . . . . . . . 5 2 4 . . 16 . 6 . . 5 . . . . 2 . 1 2 . . . 2 5 . 15 4 Parts Built 22 | . . . . . . . . . 8 . . . . 5 . . 2 . . . . . . 4 . . . . 2 . . 1 . Authchips . | . . . . . . . . . . . . . . . . . . . . . . . . . . . . . . . . . . Time 804 | . . . . . . . . . 166 . . . . 214 . . 29 . . . . . . 242 . . . . 42 . . 111 . Total Part Build Rating 115 | . . . . . . . . . 32 . . . . 18 . . 14 . . . . . . 26 . . . . 16 . . 9 . Parts Repaired . | . . . . . . . . . . . . . . . . . . . . . . . . . . . . . . . . . . Time . | . . . . . . . . . . . . . . . . . . . . . . . . . . . . . . . . . . Parts Recycled . | . . . . . . . . . . . . . . . . . . . . . . . . . . . . . . . . . . Recycled Matter . | . . . . . . . . . . . . . . . . . . . . . . . . . . . . . . . . . . Retrieved Matter . | . . . . . . . . . . . . . . . . . . . . . . . . . . . . . . . . . . Retrieved Components . | . . . . . . . . . . . . . . . . . . . . . . . . . . . . . . . . . . Parts Scanalyzed 1 | . . . . . . . . . . . . . . . . . . . . . . . . . . . . . 1 . . . . Part Schematics Acquired 1 | . . . . . . . . . . . . . . . . . . . . . . . . . . . . . 1 . . . . Parts Damaged 1 | . . . . . . . . . . . . . . . . . . . . . . . . . . . . . 1 . . . . Bothacking | -11 -10 -10 -9 -9 -9 -8 -8 -8 -7 -7 -7 -7 -6 -6 -6 -6 -5 -5 -5 -5 -4 -4 -4 -4 -4 -4 -4 -4 -3 -3 -2 -2 -2 ------------ Run | Yrd Mat Min Mat Min Exi Min Mat Sto Fac Low Low Zio Pro Fac Low Low Fac Upp Upp War Pro Fac Was Fac Ext Cet Arc Hub Res Qua Res Tes Sec Used RIF Installer . | . . . . . . . . . . . . . . . . . . . . . . . . . . . . . . . . . . Robots Hacked . | . . . . . . . . . . . . . . . . . . . . . . . . . . . . . . . . . . Non-combat . | . . . . . . . . . . . . . . . . . . . . . . . . . . . . . . . . . . Combat . | . . . . . . . . . . . . . . . . . . . . . . . . . . . . . . . . . . Robot Hacks Applied . | . . . . . . . . . . . . . . . . . . . . . . . . . . . . . . . . . . Relay Couplers Released . | . . . . . . . . . . . . . . . . . . . . . . . . . . . . . . . . . . Fabnet Peak Effective % . | . . . . . . . . . . . . . . . . . . . . . . . . . . . . . . . . . . Robots Rewired . | . . . . . . . . . . . . . . . . . . . . . . . . . . . . . . . . . . Allies Hacked 2 | . . . . . . . . . . . . . . . . . 1 . . . . . . 1 . . . . . . . . . Hacks Repelled . | . . . . . . . . . . . . . . . . . . . . . . . . . . . . . . . . . . Allies | -11 -10 -10 -9 -9 -9 -8 -8 -8 -7 -7 -7 -7 -6 -6 -6 -6 -5 -5 -5 -5 -4 -4 -4 -4 -4 -4 -4 -4 -3 -3 -2 -2 -2 -------- Run | Yrd Mat Min Mat Min Exi Min Mat Sto Fac Low Low Zio Pro Fac Low Low Fac Upp Upp War Pro Fac Was Fac Ext Cet Arc Hub Res Qua Res Tes Sec Total Allies 47 | . 1 1 1 3 . . 1 1 1 . . 4 . 4 . . 2 . . . . 4 1 2 14 5 . . . . . 1 1 Largest Group 11 | . 1 2 1 3 1 1 1 1 2 . . 4 3 3 . . 2 . . . . 3 1 1 11 9 9 7 . . . 1 1 Highest-Rated Group 688 | . 10 41 10 40 16 16 16 10 20 . . 104 73 73 . . 36 . . . . 62 46 26 498 688 688 519 . . . 26 45 Highest-Rated Ally 159 | . 10 31 10 16 16 16 16 10 10 . . 31 31 37 . . 26 . . . . 45 46 26 159 159 159 96 . . . 26 45 Total Orders 8 | . . . . . . . . . . . . . . . . . . . . . . . . . . 8 . . . . . . . STAY 4 | . . . . . . . . . . . . . . . . . . . . . . . . . . 4 . . . . . . . FOLLOW 4 | . . . . . . . . . . . . . . . . . . . . . . . . . . 4 . . . . . . . Ally Attacks 143 | . . 4 . 15 . . 5 . . . . . 8 16 . . . . . . . . 5 . 22 8 15 45 . . . . . Total Damage 4809 | . . 61 . 200 . . 33 . . . . . 78 232 . . . . . . . . 166 . 653 569 563 2254 . . . . . Kills 22 | . . 1 . 3 . . . . . . . . . 1 . . . . . . . . . . 6 3 . 8 . . . . . Allies Corrupted . | . . . . . . . . . . . . . . . . . . . . . . . . . . . . . . . . . . Allies Melted 1 | . . . . . . . . . . . . . . . . . . . . . . . . . . . . 1 . . . . . Intel | -11 -10 -10 -9 -9 -9 -8 -8 -8 -7 -7 -7 -7 -6 -6 -6 -6 -5 -5 -5 -5 -4 -4 -4 -4 -4 -4 -4 -4 -3 -3 -2 -2 -2 ------- Run | Yrd Mat Min Mat Min Exi Min Mat Sto Fac Low Low Zio Pro Fac Low Low Fac Upp Upp War Pro Fac Was Fac Ext Cet Arc Hub Res Qua Res Tes Sec Robot Analysis Total 13 | . . . 1 . . . . 1 3 . . . . 3 . . . . . . . . . . 1 . . 2 . 2 . . . Derelict Logs Recovered 14 | . . 1 . 2 . . . . . . 2 1 3 . 2 1 . . 1 . 1 . . . . . . . . . . . . Drone Launches . | . . . . . . . . . . . . . . . . . . . . . . . . . . . . . . . . . . Drone Recoveries . | . . . . . . . . . . . . . . . . . . . . . . . . . . . . . . . . . . Exploration | -11 -10 -10 -9 -9 -9 -8 -8 -8 -7 -7 -7 -7 -6 -6 -6 -6 -5 -5 -5 -5 -4 -4 -4 -4 -4 -4 -4 -4 -3 -3 -2 -2 -2 ------------- Run | Yrd Mat Min Mat Min Exi Min Mat Sto Fac Low Low Zio Pro Fac Low Low Fac Upp Upp War Pro Fac Was Fac Ext Cet Arc Hub Res Qua Res Tes Sec Turns Passed 13362 | 10 466 182 459 224 77 157 630 406 788 83 241 272 249 1083 336 124 909 126 271 212 100 922 51 1279 496 233 98 217 574 615 197 766 509 Spaces Moved 27697 | 20 701 346 716 327 171 228 1092 706 1458 317 680 663 794 2046 933 429 1936 246 659 906 362 2044 126 2418 974 322 148 429 1216 1763 439 1445 637 Core 179 | 20 159 . . . . . . . . . . . . . . . . . . . . . . . . . . . . . . . . Treads . | . . . . . . . . . . . . . . . . . . . . . . . . . . . . . . . . . . Legs . | . . . . . . . . . . . . . . . . . . . . . . . . . . . . . . . . . . Wheels . | . . . . . . . . . . . . . . . . . . . . . . . . . . . . . . . . . . Hover . | . . . . . . . . . . . . . . . . . . . . . . . . . . . . . . . . . . Flight 27518 | . 542 346 716 327 171 228 1092 706 1458 317 680 663 794 2046 933 429 1936 246 659 906 362 2044 126 2418 974 322 148 429 1216 1763 439 1445 637 Fastest Speed 5 | 50 37 37 31 31 31 31 26 26 24 24 24 24 24 17 5 5 5 23 23 23 23 5 24 20 20 27 27 20 24 23 24 22 22 Average Speed 25 | 50 40 37 33 31 31 31 29 26 26 24 24 24 24 23 22 22 22 23 23 23 23 23 26 26 26 27 27 26 25 24 24 23 26 Slowest Speed 120 | 50 120 37 37 31 31 31 31 26 27 24 24 24 24 24 23 23 23 23 23 23 23 27 27 100 27 27 27 27 97 25 24 24 107 Overloaded Moves 274 | . . . . . . . . . . . . . . 33 26 21 57 . . . . 23 19 83 8 . . 4 . . . . . Propulsion Burnouts . | . . . . . . . . . . . . . . . . . . . . . . . . . . . . . . . . . . Robots Hopped 98 | . 9 1 1 . . 3 1 3 5 . . . . 12 . . 8 . . . . 11 4 11 5 . . 4 1 12 . 7 . Cave-ins Triggered 2 | . . . 1 . . . . . . . . . . . . . . . . . . . . 1 . . . . . . . . . Exploration Rate (%) 65 | 4 85 72 69 66 42 43 77 76 42 61 92 79 89 50 93 51 59 45 80 94 57 54 91 58 87 81 90 51 37 98 23 97 28 Regions Visited 33 Branch Regions 22 Pre-discovered Areas 9 | . . 1 . 2 1 . . . . . . 1 1 . 1 1 . . 1 . . . . . . . . . . . . . . Known Exits Taken 16 | . 1 1 . . . 1 1 1 1 . . . 1 1 . 1 1 . . . 1 . . 1 1 . . 1 1 1 . . . Unknown Exits Taken 15 | 1 . . 1 1 1 . . . . 1 1 1 . . 1 . . 1 1 1 . . . . . 1 1 . . . 1 1 . Scrap Searched 34 | . . . . 1 . 1 . . . 12 3 4 5 . 2 2 . 1 2 . 1 . . . . . . . . . . . . Spaces Dug 73 | . . . 10 . . . 2 6 . . . . . 3 . . 2 . . . . . . 10 . . . 6 1 9 2 14 8 Terrain Destroyed 73 | . . . 10 . . . 2 6 . . . . . 3 . . 2 . . . . . . 10 . . . 6 1 9 2 14 8 Melee 73 | . . . 10 . . . 2 6 . . . . . 3 . . 2 . . . . . . 10 . . . 6 1 9 2 14 8 Projectile . | . . . . . . . . . . . . . . . . . . . . . . . . . . . . . . . . . . AOE . | . . . . . . . . . . . . . . . . . . . . . . . . . . . . . . . . . . Terrain Rammed . | . . . . . . . . . . . . . . . . . . . . . . . . . . . . . . . . . . Walls Destroyed . | . . . . . . . . . . . . . . . . . . . . . . . . . . . . . . . . . . Machines Disabled . | . . . . . . . . . . . . . . . . . . . . . . . . . . . . . . . . . . Actions | -11 -10 -10 -9 -9 -9 -8 -8 -8 -7 -7 -7 -7 -6 -6 -6 -6 -5 -5 -5 -5 -4 -4 -4 -4 -4 -4 -4 -4 -3 -3 -2 -2 -2 --------- Run | Yrd Mat Min Mat Min Exi Min Mat Sto Fac Low Low Zio Pro Fac Low Low Fac Upp Upp War Pro Fac Was Fac Ext Cet Arc Hub Res Qua Res Tes Sec Total 32207 | 19 799 391 847 442 194 293 1301 810 1733 320 731 773 829 2504 1025 445 2266 286 761 909 369 2391 138 2898 1116 450 202 488 1432 1876 501 1741 927 Wait 2275 | . 33 31 42 102 24 54 76 24 112 . 25 109 22 280 38 2 142 14 62 . . 203 14 232 39 91 35 21 102 53 23 94 176 Move 27483 | 19 685 343 713 326 170 221 1089 699 1447 316 679 662 793 2023 932 428 1920 245 658 905 361 2023 119 2396 963 321 147 420 1213 1741 438 1431 637 Hop 84 | . 6 1 1 . . 3 1 3 5 . . . . 10 . . 7 . . . . 10 2 10 5 . . 4 1 9 . 6 . Pick Up 52 | . . . . . . . 3 . 1 1 . 1 . 5 1 . 1 . 1 1 . 4 . 10 4 1 2 2 4 4 . 3 3 Fast Attach 112 | . 12 3 6 . . . 3 2 16 . 1 . . 3 1 3 5 . 1 1 . 5 . 11 2 . . . 14 3 . 18 2 Attach 12 | . . . . . . . . . . . . . . 2 . . . . . . 1 1 . 5 . . 1 . 1 . . . 1 Detach 5 | . . . . . . . . . . . . . . . . . . . 1 . . 1 . 1 1 . . . 1 . . . . Swap 94 | . 6 . 6 . . 1 9 1 10 . . . . 13 . . 4 . . . . 5 2 2 6 1 . . 8 4 1 12 3 Drop 171 | . 7 2 8 . . . 9 . 19 1 . . . 14 2 3 5 . 2 2 . 11 1 20 3 1 2 1 19 9 1 25 4 Fire 36 | . 36 . . . . . . . . . . . . . . . . . . . . . . . . . . . . . . . . Melee 1053 | . 2 4 55 4 . 11 66 68 67 2 12 1 12 94 25 9 98 20 20 . 7 55 . 89 51 12 5 26 36 36 21 88 57 Ram . | . . . . . . . . . . . . . . . . . . . . . . . . . . . . . . . . . . Kick . | . . . . . . . . . . . . . . . . . . . . . . . . . . . . . . . . . . Crush . | . . . . . . . . . . . . . . . . . . . . . . . . . . . . . . . . . . Escape Stasis 39 | . . . . . . . . . . . . . . . . . 18 . . . . 17 . . . . . . . . . . 4 Rewire . | . . . . . . . . . . . . . . . . . . . . . . . . . . . . . . . . . . Trap . | . . . . . . . . . . . . . . . . . . . . . . . . . . . . . . . . . . Miscellaneous 791 | . 12 7 16 10 . 3 45 13 56 . 14 . 2 60 26 . 66 7 16 . . 56 . 122 42 23 10 14 33 17 17 64 40 Route ------- -11/Scrapyard -10/Materials (discovered 4 exits: *Mat x3 / *Min) -10/Mines -9/Materials (discovered 4 exits: *Mat x3 / [*Min]) -9/Mines (discovered 2 exits: *Mat / *Exi) -9/Exiles -8/Mines (discovered 2 exits: *Mat x2) -8/Materials (discovered 4 exits: *Fac x3 / *Sto) -8/Storage (discovered 2 exits: *Fac / Rec) -7/Factory (discovered 6 exits: *Fac x4 / *Low x2) -7/Lower Caves -7/Lower Caves -7/Zion -6/Proximity Caves -6/Factory (discovered 6 exits: *Fac x4 / *Low x2) -6/Lower Caves -6/Lower Caves -5/Factory (discovered 5 exits: *Fac x3 / *Upp x2) -5/Upper Caves -5/Upper Caves (discovered 2 exits: *Fac / *War) -5/Warlord -4/Proximity Caves -4/Factory (discovered 7 exits: *Res x3 / *Upp x2 / *Ext x2) -4/Waste -4/Factory (discovered 8 exits: *Res x4 / Upp x2 / *Ext x2) -4/Extension (discovered 3 exits: *Res x2 / *Cet) -4/Cetus (discovered 2 exits: *Res / *Arc) -4/Archives (discovered 3 exits: *Res / *Hub x2) -4/Hub_04(d) (discovered 2 exits: *Res x2) -3/Research (discovered 6 exits: *Res x3 / *Arm / *Qua x2) -3/Quarantine -2/Research (discovered 4 exits: Acc x3 / *Tes) -2/Testing (discovered 2 exits: *Acc / *Sec) -2/Section 7 (discovered 1 exit: *Acc) History --------- Turn | Location | Event 4 | -11/Scrapyard | Discovered new exit (range 15) 11 | -11/Scrapyard | Entered Materials 72 | -10/Materials | Upgraded with Weapon slot (x1) 104 | -10/Materials | Upgraded with Utility slot (x1) 186 | -10/Materials | Discovered new exit (range 14) 229 | -10/Materials | Upgraded with Propulsion slot (x1) 259 | -10/Materials | Discovered new exit (range 16) 269 | -10/Materials | Identified exit to Mines 392 | -10/Materials | Central database locked down 407 | -10/Materials | Discovered new exit (range 8) 466 | -10/Materials | Identified exit to Materials 477 | -10/Materials | Entered Mines 477 | -10/Mines | Accompanied by 1 ally 479 | -10/Mines | Reached level 2 480 | -10/Mines | Met a Derelict who couldn't figure out how to use a Trap Extractor 505 | -10/Mines | Discovered exit to Materials (range 9) 506 | -10/Mines | Met a Derelict testing a Signal Generator 554 | -10/Mines | Found a damaged Exp. Sensor Array with a note attached 554 | -10/Mines | Found Prototype Device 554 | -10/Mines | Identified Exp. Sensor Array 563 | -10/Mines | Learned location of Zion (-7) 659 | -10/Mines | Entered Materials 659 | -9/Materials | Accompanied by 1 ally 661 | -9/Materials | Reached level 3 725 | -9/Materials | Identified exit to Materials 798 | -9/Materials | Build established: Hacker-Gladiator 812 | -9/Materials | Discovered new exit (range 15) 839 | -9/Materials | Reached level 4 896 | -9/Materials | Upgraded with Propulsion slot (x2) 1055 | -9/Materials | Crushed by falling debris 1064 | -9/Materials | Central database locked down 1118 | -9/Materials | Entered Mines 1119 | -9/Mines | Assisted by bots powering up and referring to "LRC-V3" 1120 | -9/Mines | Reached level 5 1153 | -9/Mines | A weapon hastily lodged in a ceiling crevice suddenly fell to the ground 1168 | -9/Mines | Discovered exit to Materials (range 16) 1186 | -9/Mines | Found DCF Scrap (14 items) 1187 | -9/Mines | Build established: Hacker-Sprinter 1279 | -9/Mines | Deemed a non-threat by the Exiles lab entrance 1279 | -9/Mines | Discovered new exit (range 5) 1342 | -9/Mines | Entered Exiles 1342 | -9/Exiles | Accompanied by 1 ally 1350 | -9/Exiles | Met 8R-AWN 1355 | -9/Exiles | Met EX-HEX 1368 | -9/Exiles | Met EX-DEC 1390 | -9/Exiles | Discovered new exit (range 16) 1419 | -9/Exiles | Entered Mines 1419 | -8/Mines | Accompanied by 1 ally 1428 | -8/Mines | Discovered exit to Materials (range 13) 1464 | -8/Mines | Reached level 6 1519 | -8/Mines | Discovered exit to Materials (range 10) 1576 | -8/Mines | Entered Materials 1576 | -8/Materials | Accompanied by 1 ally 1578 | -8/Materials | Reached level 7 1579 | -8/Materials | Identified exit to Factory 1584 | -8/Materials | Discovered new exit (range 12) 1604 | -8/Materials | Garrison activated, responded to threat 1655 | -8/Materials | Identified exit to Storage 1661 | -8/Materials | Upgraded with Weapon slot (x2) 1799 | -8/Materials | Reached level 8 1869 | -8/Materials | Upgraded with Utility slot (x1) 2000 | -8/Materials | Reached level 9 2010 | -8/Materials | Upgraded with Propulsion slot (x1) 2136 | -8/Materials | Central database locked down 2206 | -8/Materials | Entered Storage 2206 | -8/Storage | Accompanied by 1 ally 2207 | -8/Storage | Identified exit to Recycling 2208 | -8/Storage | Reached level 10 2299 | -8/Storage | Reached level 11 2332 | -8/Storage | Discovered exit to Factory (range 16) 2342 | -8/Storage | Destroyed 8 combat bots 2509 | -8/Storage | Upgraded with Weapon slot (x1) 2532 | -8/Storage | Core integrity fell below 50% 2538 | -8/Storage | Reached level 12 2581 | -8/Storage | Destroyed 9 combat bots 2612 | -8/Storage | Entered Factory 2612 | -7/Factory | Accompanied by 1 ally 2613 | -7/Factory | Core integrity fell below 50% 2614 | -7/Factory | Reached level 13 2620 | -7/Factory | Identified exit to Lower Caves 2620 | -7/Factory | Identified exit to Factory 2654 | -7/Factory | Upgraded with Utility slot (x2) 2997 | -7/Factory | Fabricated Adv. Melee Analysis Suite (x2) 2998 | -7/Factory | Reached level 14 3015 | -7/Factory | Fabricated Reaction Control System (x2) 3023 | -7/Factory | Upgraded with Utility slot (x2) 3048 | -7/Factory | Garrison activated, responded to threat 3055 | -7/Factory | Core integrity fell below 20% 3113 | -7/Factory | Destroyed 7 combat bots 3143 | -7/Factory | Fabricated Target Analyzer (x2) 3166 | -7/Factory | Central database locked down 3270 | -7/Factory | Fabricated Phase Shifter (x2) 3343 | -7/Factory | Reached level 15 3400 | -7/Factory | Entered Lower Caves 3473 | -7/Lower Caves | Encountered a Warlord checkpoint 3478 | -7/Lower Caves | Discovered new exit (range 14) 3483 | -7/Lower Caves | Entered another Lower Caves area 3587 | -7/Lower Caves | Learned 12 Factory zone layouts 3627 | -7/Lower Caves | Found DCF Scrap (13 items) 3637 | -7/Lower Caves | Encountered a Warlord checkpoint 3639 | -7/Lower Caves | Learned Factory security intel 3700 | -7/Lower Caves | Discovered new exit (range 11) 3724 | -7/Lower Caves | Entered Zion 3755 | -7/Zion | Discovered new exit (range 13) 3787 | -7/Zion | Learned 4 Factory zone layouts 3797 | -7/Zion | Gained Derelict followers 3996 | -7/Zion | Entered Proximity Caves 3996 | -6/Proximity Caves | Accompanied by 3 allies 3998 | -6/Proximity Caves | Reached level 16 4017 | -6/Proximity Caves | Spotted B-75 Beast 4067 | -6/Proximity Caves | Learned Research stockpile data 4067 | -6/Proximity Caves | Learned Extension stockpile data 4067 | -6/Proximity Caves | Learned Armory stockpile data 4067 | -6/Proximity Caves | Learned Factory garrison access intel 4067 | -6/Proximity Caves | Learned Research garrison access intel 4149 | -6/Proximity Caves | Learned Factory emergency access door positions 4201 | -6/Proximity Caves | Discovered exit to Factory (range 11) 4245 | -6/Proximity Caves | Entered Factory 4245 | -6/Factory | Accompanied by 3 allies 4246 | -6/Factory | Identified exit to Lower Caves 4246 | -6/Factory | Identified exit to Factory 4247 | -6/Factory | Reached level 17 4249 | -6/Factory | Loaded intel: 4 garrison access locations 4249 | -6/Factory | Upgraded with Utility slot (x1) 4254 | -6/Factory | Identified exit to DSF 4300 | -6/Factory | Discovered exit to Factory (range 4) 4313 | -6/Factory | Reached level 18 4334 | -6/Factory | Upgraded with Utility slot (x1) 4359 | -6/Factory | Discovered exit to Factory (range 13) 4568 | -6/Factory | Fabricated Cld. VTOL Module (x1) 4602 | -6/Factory | Discovered exit to Factory (range 9) 4775 | -6/Factory | Core integrity fell below 50% 4797 | -6/Factory | Destroyed 11 combat bots 4849 | -6/Factory | Fabricated Cld. VTOL Module (x1) 4872 | -6/Factory | Central database locked down 5074 | -6/Factory | Fabricated Actuator Array (x2) 5084 | -6/Factory | Reached level 19 5170 | -6/Factory | Spotted B-75 Beast 5173 | -6/Factory | Destroyed B-75 Beast 5244 | -6/Factory | Destroyed 9 combat bots 5245 | -6/Factory | Fabricated Cld. VTOL Module? 5328 | -6/Factory | Entered Lower Caves 5363 | -6/Lower Caves | Spotted B-75 Beast 5367 | -6/Lower Caves | Destroyed B-75 Beast 5461 | -6/Lower Caves | Encountered a Warlord checkpoint 5462 | -6/Lower Caves | Learned Factory emergency access door positions 5565 | -6/Lower Caves | Discovered new exit (range 10) 5575 | -6/Lower Caves | Reached level 20 5611 | -6/Lower Caves | Attracted the attention of an 0b10 outpost 5661 | -6/Lower Caves | Destroyed 7 combat bots 5664 | -6/Lower Caves | Entered another Lower Caves area 5671 | -6/Lower Caves | Acquired the password to a Derelict Tinkerer's latest research 5674 | -6/Lower Caves | Found Prototype Special Weapon 5674 | -6/Lower Caves | Identified Molecular Deconstructor 5746 | -6/Lower Caves | Discovered exit to Factory (range 5) 5767 | -6/Lower Caves | Caught by Unaware searching for contraband prototypes 5788 | -6/Lower Caves | Entered Factory 5789 | -5/Factory | Identified exit to DSF 5815 | -5/Factory | Discovered new exit (range 6) 5825 | -5/Factory | Reached level 21 5827 | -5/Factory | Upgraded with Utility slot (x1) 5990 | -5/Factory | Identified exit to DSF 5990 | -5/Factory | Discovered new exit (range 17) 6180 | -5/Factory | Destroyed 11 combat bots 6229 | -5/Factory | Discovered new exit (range 15) 6256 | -5/Factory | Reached level 22 6267 | -5/Factory | Identified exit to Upper Caves 6359 | -5/Factory | Destroyed 8 combat bots 6554 | -5/Factory | Fabricated Imp. Phase Shifter? 6587 | -5/Factory | Core integrity fell below 50% 6623 | -5/Factory | Destroyed 15 combat bots 6688 | -5/Factory | First assault squad dispatched 6697 | -5/Factory | Entered Upper Caves 6699 | -5/Upper Caves | Reached level 23 6769 | -5/Upper Caves | Spotted B-75 Beast 6775 | -5/Upper Caves | Discovered new exit (range 2) 6780 | -5/Upper Caves | Destroyed B-75 Beast 6823 | -5/Upper Caves | Entered another Upper Caves area 6835 | -5/Upper Caves | Discovered new exit (range 12) 6942 | -5/Upper Caves | Learned location of Warlord (-5) 7057 | -5/Upper Caves | Discovered new exit (range 4) 7094 | -5/Upper Caves | Entered Warlord 7106 | -5/Warlord | System corruption cleaned by Quarantine Array 7208 | -5/Warlord | Visited the Vortex Lab 7210 | -5/Warlord | Found Prototype Piercing Weapon 7210 | -5/Warlord | Identified Vortex Lance 7212 | -5/Warlord | Warlord's base attacked by MAIN.C 7212 | -5/Warlord | Found Vortex Lance 7244 | -5/Warlord | Met Warlord 7300 | -5/Warlord | Opened side exit 7305 | -5/Warlord | Discovered new exit (range 9) 7306 | -5/Warlord | Entered Proximity Caves 7308 | -4/Proximity Caves | Reached level 24 7308 | -4/Proximity Caves | Upgraded with Utility slot (x1) 7371 | -4/Proximity Caves | Identified exit to Factory 7406 | -4/Proximity Caves | Entered Factory 7407 | -4/Factory | Identified exit to Research 7423 | -4/Factory | Discovered new exit (range 5) 7578 | -4/Factory | Identified exit to DSF 7681 | -4/Factory | Reached level 25 7720 | -4/Factory | Destroyed 7 combat bots 7901 | -4/Factory | Discovered new exit (range 10) 7916 | -4/Factory | Spotted B-86 Titan 7926 | -4/Factory | Identified exit to Upper Caves 7926 | -4/Factory | Identified exit to Extension 7978 | -4/Factory | Destroyed B-86 Titan 8089 | -4/Factory | Core integrity fell below 50% 8152 | -4/Factory | Discovered exit to Research (range 18) 8156 | -4/Factory | First assault squad dispatched 8159 | -4/Factory | Destroyed 7 combat bots 8257 | -4/Factory | Discovered exit to Research (range 16) 8328 | -4/Factory | Manually triggered Chute Trap 8328 | -4/Factory | Sucked down chute 8328 | -4/Factory | Entered Waste 8329 | -4/Waste | Met a frightened Derelict 8336 | -4/Waste | Spotted C-40 Crusher 8336 | -4/Waste | Spotted C-40 Crusher 8343 | -4/Waste | EMP discharged 8343 | -4/Waste | System corruption reached 10% 8346 | -4/Waste | Spotted C-40 Crusher 8346 | -4/Waste | Spotted C-40 Crusher 8348 | -4/Waste | Spotted C-40 Crusher 8354 | -4/Waste | Spotted C-40 Crusher 8363 | -4/Waste | 1 allies followed down the chute 8363 | -4/Waste | Discovered new exit (range 12) 8379 | -4/Waste | Entered Factory 8394 | -4/Factory | Identified exit to DSF 8486 | -4/Factory | Identified exit to DSF 8595 | -4/Factory | Reached level 26 8629 | -4/Factory | Search patrols dispatched 8733 | -4/Factory | Fabricated Cld. Nuclear Pulse Thruster (x1) 8747 | -4/Factory | Fabricated Cld. Nuclear Pulse Thruster (x1) 8770 | -4/Factory | Destroyed 7 combat bots 9028 | -4/Factory | Found Prototype Processor 9028 | -4/Factory | Identified Exp. Signal Interpreter 9205 | -4/Factory | Fabricated Cld. Nuclear Pulse Thruster (x1) 9229 | -4/Factory | Spotted B-86 Titan 9245 | -4/Factory | Destroyed B-86 Titan 9379 | -4/Factory | First assault squad dispatched 9403 | -4/Factory | Fabricated Impulse Thruster Array (x1) 9575 | -4/Factory | Reached level 27 9616 | -4/Factory | Crushed by falling debris 9658 | -4/Factory | Entered Extension 9702 | -4/Extension | Rescued A7 9733 | -4/Extension | Rescued a captive Derelict 9733 | -4/Extension | Rescued a captive Derelict 9775 | -4/Extension | Rescued a captive Derelict 9778 | -4/Extension | Rescued a captive Derelict 9783 | -4/Extension | Identified exit to Cetus 9796 | -4/Extension | Spotted B-86 Titan 9808 | -4/Extension | Spotted B-86 Titan 9811 | -4/Extension | Rescued a captive Derelict 9812 | -4/Extension | Rescued a captive Derelict 9846 | -4/Extension | Allies destroyed B-86 Titan 9856 | -4/Extension | Destroyed B-86 Titan 9887 | -4/Extension | Discovered exit to Research (range 2) 9902 | -4/Extension | Rescued a captive Derelict 9904 | -4/Extension | Rescued a captive Derelict 9943 | -4/Extension | Discovered exit to Research (range 17) 10024 | -4/Extension | Rescued a captive Derelict 10024 | -4/Extension | Rescued a captive Derelict 10083 | -4/Extension | Disrupted transfer network 10154 | -4/Extension | Entered Cetus 10154 | -4/Cetus | Accompanied by 4 allies (A7) 10158 | -4/Cetus | Spotted Cetus Guard 10158 | -4/Cetus | Spotted Cetus Guard 10158 | -4/Cetus | Spotted Cetus Guard 10158 | -4/Cetus | Spotted Cetus Guard 10159 | -4/Cetus | Acquired a Cetus Manufacturing Module code from A7 10162 | -4/Cetus | Destroyed Cetus Guard 10168 | -4/Cetus | Destroyed Cetus Guard 10169 | -4/Cetus | Allies destroyed Cetus Guard 10171 | -4/Cetus | Destroyed Cetus Guard 10221 | -4/Cetus | Escorted A7 to Cetus Mainframe 10224 | -4/Cetus | Started Cetus Manufacturing Module 10234 | -4/Cetus | Discovered new exit (range 18) 10249 | -4/Cetus | Manufactured an Enhanced Grunt 10255 | -4/Cetus | Spotted Cetus Guard 10256 | -4/Cetus | Spotted Cetus Guard 10270 | -4/Cetus | Spotted Cetus Guard 10270 | -4/Cetus | Spotted Cetus Guard 10274 | -4/Cetus | Manufactured an Enhanced Grunt 10274 | -4/Cetus | Discovered exit to Research (range 17) 10276 | -4/Cetus | Destroyed Cetus Guard 10278 | -4/Cetus | Destroyed Cetus Guard 10281 | -4/Cetus | Destroyed Cetus Guard 10281 | -4/Cetus | Destroyed Cetus Guard 10299 | -4/Cetus | Manufactured an Enhanced Grunt 10324 | -4/Cetus | Manufactured an Enhanced Grunt 10349 | -4/Cetus | Manufactured an Enhanced Grunt 10387 | -4/Cetus | Entered Archives 10387 | -4/Archives | Accompanied by 9 allies (A7) 10392 | -4/Archives | Received a hacking code to weaken MAIN.C 10400 | -4/Archives | Discovered new exit (range 18) 10405 | -4/Archives | Discovered new exit (range 18) 10406 | -4/Archives | Reached level 28 10410 | -4/Archives | Discovered exit to Research (range 18) 10434 | -4/Archives | Unable to access archive contents 10438 | -4/Archives | Unable to access archive contents 10441 | -4/Archives | Unable to access archive contents 10459 | -4/Archives | Upgraded with Utility slot (x1) 10485 | -4/Archives | Entered Hub_04(d) 10485 | -4/Hub_04(d) | Accompanied by 7 allies 10517 | -4/Hub_04(d) | Spotted B-86 Titan 10573 | -4/Hub_04(d) | Discovered exit to Research (range 11) 10646 | -4/Hub_04(d) | Discovered exit to Research (range 17) 10702 | -4/Hub_04(d) | Entered Research 10704 | -3/Research | Loaded intel: 4 garrison access locations 10741 | -3/Research | Spotted B-86 Titan 10755 | -3/Research | Destroyed B-86 Titan 10833 | -3/Research | Identified exit to Armory 10833 | -3/Research | Identified exit to Quarantine 10838 | -3/Research | Identified exit to Research 10847 | -3/Research | Spotted B-86 Titan 10853 | -3/Research | Destroyed B-86 Titan 10902 | -3/Research | Revision forces began assault on 0b10 10925 | -3/Research | Reached level 29 10986 | -3/Research | Met up with Revision 17++ 11004 | -3/Research | Destroyed 9 combat bots 11204 | -3/Research | Destroyed 8 combat bots 11228 | -3/Research | Fabricated Enh. Force Lance (x2) 11276 | -3/Research | Entered Quarantine 11478 | -3/Quarantine | Reached level 30 11600 | -3/Quarantine | Discovered exit to Research (range 7) 11637 | -3/Quarantine | Found Alien Artifact 11647 | -3/Quarantine | Identified Terrabomb 11674 | -3/Quarantine | Found Alien Artifact 11693 | -3/Quarantine | Identified Subatomic Replicator 11708 | -3/Quarantine | Found Alien Artifact 11738 | -3/Quarantine | Identified Core Reset Matrix 11824 | -3/Quarantine | Met incapacitated Sigix Warrior 11824 | -3/Quarantine | Lockdown squad dispatched 11891 | -3/Quarantine | Entered Research 11891 | -2/Research | Warlord forces began assault on 0b10 11896 | -2/Research | Identified exit to Access 11960 | -2/Research | Spotted B-90 Cyclops 11960 | -2/Research | Reached level 31 11997 | -2/Research | Destroyed 9 combat bots 12001 | -2/Research | Research machine network offline 12073 | -2/Research | Discovered new exit (range 3) 12087 | -2/Research | Upgraded with Utility slot (x1) 12088 | -2/Research | Entered Testing 12105 | -2/Testing | Superbehemoth self-activated to run performance analysis 12107 | -2/Testing | Protovariant out of control (PG-N3X3392UB3) 12107 | -2/Testing | Unleashed a protovariant (PG-N3X3392UB3) 12114 | -2/Testing | Spotted PG-N3X3392UB3 12119 | -2/Testing | Destroyed PG-N3X3392UB3 12163 | -2/Testing | Reached level 32 12182 | -2/Testing | Found Prototype Device 12182 | -2/Testing | Identified Exp. Shock Absorption System 12186 | -2/Testing | Found Prototype Device 12186 | -2/Testing | Identified Exp. ECM Suite 12279 | -2/Testing | Fabricated Cld. Linear Gravjet (x1) 12282 | -2/Testing | Found Prototype Device 12282 | -2/Testing | Identified Exp. Thermal Defense Suite 12328 | -2/Testing | Spotted Superbehemoth 12353 | -2/Testing | Destroyed Superbehemoth 12393 | -2/Testing | Spotted PX-56TYJUQEFV 12538 | -2/Testing | Spotted Fortress 12551 | -2/Testing | Found Prototype Processor 12551 | -2/Testing | Identified Exp. Targeting Computer 12574 | -2/Testing | Discovered exit to Access (range 15) 12619 | -2/Testing | First assault squad dispatched 12731 | -2/Testing | Core integrity fell below 50% 12763 | -2/Testing | Destroyed 8 combat bots 12764 | -2/Testing | Spotted Striker 12764 | -2/Testing | Spotted Striker 12768 | -2/Testing | Destroyed Striker 12775 | -2/Testing | Destroyed Striker 12782 | -2/Testing | Spotted Alpha 7 12853 | -2/Testing | Discovered new exit (range 6) 12854 | -2/Testing | Entered Section 7 12854 | -2/Section 7 | Spotted S7 Guard 12855 | -2/Section 7 | Destroyed S7 Guard 12856 | -2/Section 7 | Reached level 33 12870 | -2/Section 7 | Found Alien Artifact 12890 | -2/Section 7 | Spotted B-90 Cyclops 12890 | -2/Section 7 | Spotted S7 Guard 12893 | -2/Section 7 | Destroyed S7 Guard 13025 | -2/Section 7 | Destroyed B-90 Cyclops 13092 | -2/Section 7 | Discovered exit to Access (range 14) 13183 | -2/Section 7 | Scanned by Researcher 13200 | -2/Section 7 | Found Alien Artifact 13200 | -2/Section 7 | Identified Integrated Dissipator 13200 | -2/Section 7 | Installed Integrated Dissipator, increased core heat dissipation (+20) 13211 | -2/Section 7 | Spotted Alpha 7 13211 | -2/Section 7 | Spotted Alpha 7 13237 | -2/Section 7 | Destroyed Alpha 7 13262 | -2/Section 7 | Destroyed Alpha 7 13282 | -2/Section 7 | Identified Navigation Efficiency Matrix 13304 | -2/Section 7 | Intercept squad dispatched 13316 | -2/Section 7 | Spotted Tracker 13317 | -2/Section 7 | Spotted Tracker 13320 | -2/Section 7 | Destroyed Tracker 13325 | -2/Section 7 | Destroyed Tracker 13349 | -2/Section 7 | Spotted Combat Programmer 13350 | -2/Section 7 | Spotted Combat Programmer 13359 | -2/Section 7 | Core integrity fell below 20% 13360 | -2/Section 7 | Destroyed Combat Programmer 13363 | -2/Section 7 | Destroyed by Combat Programmer with EMDS Last Messages --------------- 13357_ Plasma Lance follow-up attack on Combat Programmer. 13357_ Vortex Lance follow-up attack on Combat Programmer. 13358_ Penetrated by EMDS Slug. 13359_ Adv. Corruption Screen intercepted 1% system corruption. 13360_ Enh. Force Lance follow-up attack on Combat Programmer. 13360_ Plasma Lance follow-up attack on Combat Programmer. 13360_ Combat Programmer fries systems beyond repair. 13360_ Combat Programmer destroyed. 13361_ Penetrated by EMDS Slug. 13361_ Adv. Corruption Screen intercepted 1% system corruption. 13363_ Penetrated by EMDS Slug. 13363_ Adv. Corruption Screen intercepted 1% system corruption. Map ----- +----------------------------------------------------+ | | | | | | | | | | | | | | | | | | | | | | | | | | | | | | | | | | | | | | | | | ?????????????????????##############??????????????? | | ?????????????????????# ! #??????????????? | | ?????????????????????# ] """"" #??????????????? | | ?????????????????????# """"" #??????????????? | | ?????????????????????# = """"" #??????????????? | | ?????????????????????# p @ ! #??????????????? | | ?????????????????????#+#####+########????????????? | | ?????????????????????????# % #####"############## | | ?????????????????????????+ = ! ![ | | ?????????????????????????# ! !!! % | | ?????????????????????????# ##########+### #### | | ?????????????????????????## ##??#[ [ # #??? | | ??????????????????????????# #???# # #??? | | ??????????????????????????# #???# """ """ # #?## | | ?????????????????????????? ???# """ """ # #?#" | | ?????????????????????????# ???# "S """ + #?#T | | ?????????????????????????# ???# """ = # #?## | | ?????????????????????????# ???#[!"" *%=####??? | | ?????????????????????????# ???#!=% ! #?????? | | ?????????????????????????# ???#=#########?????? | | ?????????????????????????# ???###?????????????? | | ?????????????????????????# ???????????????????? | | ?????????????????????????# ???????????????????? | | ?????????????????????????# ???????????????????? | | ?????????????????????????????????????????????????? | | ???????????????????????????????????############### | | ????????????????????????????????? | | ????????????????????????????????? | | ????????????????????????????????? | | ????????????????????????????????? | +----------------------------------------------------+ Best States ------------- Heat Dissipation 69 Energy Generation 46 Energy Capacity 500 Matter Stores 300 Matter Capacity 300 Sight Range 18 Terrain Scan Density 10 Jamming Range 16 Additional Mass Support 9 Corruption Block 20 Armor Coverage 225 Melee Speed Boost 50 Phase Shifting 15 Evasion (%) 94 Targeting Accuracy 6 Melee Accuracy 16 Target Analysis 8 Core Analysis 9 Armor Integrity Analysis 40 Offensive Hacking 30 Defensive Hacking 15 Item Schematics ----------------- Melee Analysis Suite | -8/Materials | Hacked Actuator Array | -8/Materials | Hacked Reaction Control System | -8/Materials | Hacked Force Booster | -8/Materials | Hacked Target Analyzer | -8/Materials | Hacked Adv. Melee Analysis Suite | -8/Storage | Hacked Lightning Gun | -8/Storage | Hacked Core Analyzer | -7/Factory | Hacked Transmission Jammer | -7/Factory | Hacked Phase Shifter | -7/Factory | Hacked Adv. System Restoration Module | -7/Factory | Hacked Hvy. Ion Cannon | -7/Zion | Archive Lyr. Medium Armor Plating | -7/Zion | Archive Arc Projector | -7/Zion | Archive Phase Cannon | -7/Zion | Archive Component Analysis Suite | -7/Zion | Archive Adv. Signal Interpreter | -7/Zion | Archive Arm. Huge Wheel | -7/Zion | Archive Imp. Focal Shield | -7/Zion | Archive Adv. Shield Generator | -7/Zion | Archive Chainsword | -7/Zion | Archive Imp. Hardlight Generator | -7/Zion | Archive Dynamic Insulation System | -7/Zion | Archive Imp. Hacking Suite | -7/Zion | Archive Adv. Sensor Array | -7/Zion | Archive Weapon Cycler | -7/Zion | Archive Hvy. Mass Driver | -7/Zion | Archive Graphene Brace | -6/Factory | Hacked Imp. Target Analyzer | -6/Factory | Hacked Imp. Reaction Control System | -6/Factory | Hacked Cld. VTOL Module | -6/Factory | Hacked Neutrino Core | -6/Factory | Hacked Stealth Drone Bay | -6/Factory | Hacked Imp. Phase Shifter | -5/Factory | Hacked Imp. Transmission Jammer | -5/Factory | Hacked Lance | -5/Factory | Hacked Shock Maul | -5/Factory | Hacked Imp. Force Field | -5/Factory | Hacked Cld. Nuclear Pulse Thruster | -4/Factory | Hacked Nanoactuators | -4/Factory | Hacked Impulse Thruster Array | -4/Factory | Hacked Point Singularity Launcher | -4/Extension | Hacked Adv. Reaction Control System | -4/Extension | Hacked Enh. Force Lance | -3/Research | Hacked Diametric Drive | -3/Research | Scanalyzed Cld. Linear Gravjet | -3/Quarantine | Hacked Exp. Core Analyzer | -3/Quarantine | Hacked Quantum Shading Machine | -3/Quarantine | Archive Imp. Energy Mantle | -3/Quarantine | Archive Hvy. Dispersion Rifle | -3/Quarantine | Archive Adv. Matter Compressor | -2/Testing | Archive Adv. KE Penetrator | -2/Testing | Archive Adv. Energy Well | -2/Testing | Archive Hdn. Centrium Leg | -2/Testing | Archive Kinetic Spear | -2/Testing | Archive Exp. Power Amplifier | -2/Testing | Archive Imp. Diametric Drive | -2/Testing | Archive Prc. Phase Gun | -2/Testing | Archive Enh. Gamma Bomb Array | -2/Testing | Archive Adv. Variable Charge Gun | -2/Testing | Archive Ragnarok Missile Launcher | -2/Testing | Archive Exp. Shock Absorption System | -2/Testing | Archive Adv. Gravity Neutralizer | -2/Testing | Archive Lgt. Regenerative Plating | -2/Testing | Hacked Exp. Energy Well | -2/Testing | Archive Cld. Phase Gun | -2/Section 7 | Archive Tactical Quantum Warhead | -2/Section 7 | Archive Adv. Remote Shield | -2/Section 7 | Archive Exp. Melee Analysis Suite | -2/Section 7 | Archive Robot Schematics ------------------ R-06 Scavenger | -8/Storage | Hacked H-55 Commando | -7/Zion | Archive T-07 Excavator | -7/Zion | Archive C-17 Slicer | -6/Factory | Hacked E-15 Imp | -5/Factory | Hacked A-02 Transporter | -2/Testing | Archive M-36 Artificer | -2/Testing | Archive W-44 Eye | -2/Section 7 | Archive A-27 Freighter | -2/Section 7 | Archive M-30 Cleanser | -2/Section 7 | Archive A-15 Conveyor | -2/Section 7 | Archive Fabricated ------------ Adv. Melee Analysis Suite | x2 | -7/Factory Reaction Control System | x2 | -7/Factory Target Analyzer | x2 | -7/Factory Phase Shifter | x2 | -7/Factory Cld. VTOL Module | x1 | -6/Factory Cld. VTOL Module | x1 | -6/Factory Actuator Array | x2 | -6/Factory Cld. VTOL Module | x1 | -6/Factory Imp. Phase Shifter | x2 | -5/Factory Cld. Nuclear Pulse Thruster | x1 | -4/Factory Cld. Nuclear Pulse Thruster | x1 | -4/Factory Cld. Nuclear Pulse Thruster | x1 | -4/Factory Impulse Thruster Array | x1 | -4/Factory Enh. Force Lance | x2 | -3/Research Cld. Linear Gravjet | x1 | -2/Testing Alien Tech Used ----------------- Integrated Dissipator Achievements -------------- None Challenges ------------ None RPGLIKE | -11 -10 -10 -9 -9 -9 -8 -8 -8 -7 -7 -7 -7 -6 -6 -6 -6 -5 -5 -5 -5 -4 -4 -4 -4 -4 -4 -4 -4 -3 -3 -2 -2 -2 --------- Run | Yrd Mat Min Mat Min Exi Min Mat Sto Fac Low Low Zio Pro Fac Low Low Fac Upp Upp War Pro Fac Was Fac Ext Cet Arc Hub Res Qua Res Tes Sec Levels Raised 32 | . . 1 2 1 . 1 3 3 3 . . . 1 3 1 . 2 1 . . 1 1 . 2 . . 1 . 1 1 1 1 1 XP Earned 51657 | 3000 1260 1042 3440 912 200 1125 4736 3966 4570 244 532 244 1390 4233 779 233 3926 307 553 234 915 2260 67 1868 918 367 211 380 2016 906 1721 1946 1156 XP Spent 49220 | . 2900 1400 3200 1500 . . 5270 2000 6200 300 . 500 . 5450 . . 4800 . . . 3200 1050 . 1600 . . 3500 . 1050 . 3890 1410 . Upgrades 51 | . 7 4 4 4 . . 8 2 4 1 . 1 . 3 . . 3 . . . 1 2 . 1 . . 1 . 1 . 2 2 . Propulsion Slot 4 | . 1 . 2 . . . 1 . . . . . . . . . . . . . . . . . . . . . . . . . . Utility Slot 12 | . 1 . . . . . 1 . 4 . . . . 2 . . 1 . . . 1 . . . . . 1 . . . 1 . . Weapon Slot 4 | . 1 . . . . . 2 1 . . . . . . . . . . . . . . . . . . . . . . . . . Heat Dissipation 4 | . . . . . . . 2 . . . . . . . . . . . . . . . . . . . . . . . 1 1 . Energy Generation 5 | . . . . . . . . . . 1 . . . 1 . . 1 . . . . . . . . . . . 1 . . 1 . Mass Support 4 | . . . . 1 . . . 1 . . . . . . . . 1 . . . . . . 1 . . . . . . . . . Inventory Capacity 3 | . . . . . . . 1 . . . . 1 . . . . . . . . . 1 . . . . . . . . . . . Sight Range 2 | . . . . 1 . . . . . . . . . . . . . . . . . 1 . . . . . . . . . . . Melee Accuracy 6 | . . 4 . 2 . . . . . . . . . . . . . . . . . . . . . . . . . . . . . Hack Attack % 4 | . 3 . 1 . . . . . . . . . . . . . . . . . . . . . . . . . . . . . . Hack Defense % 3 | . 1 . 1 . . . 1 . . . . . . . . . . . . . . . . . . . . . . . . . . Protomatter Created 9311 | . 90 31 151 . . 16 444 245 450 . 99 . 49 562 409 . 809 165 115 . . 648 . 1364 530 205 136 215 578 222 174 901 703 Integrity Restored 16041 | . 270 159 338 216 . 45 784 258 1192 . 290 . 26 1220 472 . 1354 136 345 . . 1131 . 2481 895 500 199 237 618 319 340 1340 876 Core 13050 | . 270 141 296 182 . 40 549 166 1095 . 220 . 18 1026 369 . 1115 105 313 . . 892 . 1969 680 456 115 183 441 247 291 1157 714 Parts 2991 | . . 18 42 34 . 5 235 92 97 . 70 . 8 194 103 . 239 31 32 . . 239 . 512 215 44 84 54 177 72 49 183 162 Protomatter Decayed 4272 | . . 50 93 . . . 137 116 49 . . . 40 48 102 110 137 117 . 45 . 138 . 327 53 . . 213 1298 270 325 384 220 Game ------ Seed ExperimentalFireShearcannon Manual? 0 Play Time 05:35:34 Cumulative 170.9 hours Start 2024.08.07 @ 00:21:15 End 2024.08.07 @ 16:50:23 Sessions 5 Manual Loads 0 Difficulty Rogue Special Mode Winter2019/RPGLIKE Game No. 173 Rogue 173 Adventurer 0 Explorer 0 Win Type - Total 13 Types 11/0/0/1/0/0/1/0/0 Lore% 44 Gallery% 62 Achievement% 68 Wizard Run 0 Options --------- Layout 1 ASCII 0 Keyboard 0 Movement Numpad Keybinds 0 Fullscreen 1 Font 24/Smallcaps Map View 50x35 Zoom Use 0% Tactical HUD 1 Map Filters NONE Filters NONE Steam 1 RUN: 3e6bea3d-bbf5-4c9d-85dc-919184d8c56b